Body Name,Body,Service Level,Expense Type,Expense Code,Narrative,Date,Transaction Number,Amount,Capital and Revenue,Supplier Name,Supplier ID
South Ribble Borough Council,http://statistics.data.gov.uk/id/local-authority/30UE,Central Support Services,Materials General,4040,"1x Kalapa, VU11 HSZ, JFC18355",10/06/2022,0000478675,348.00,Revenue,AA UK CV t/a Hydrair Truck & Trailer,0
South Ribble Borough Council,http://statistics.data.gov.uk/id/local-authority/30UE,Capital,Professional Fees,4510,4 X Attendees Multi Skills Level 2 JAN 22 ,24/06/2022,0000479459,980.00,Revenue,ACTIVE LANCASHIRE,0
South Ribble Borough Council,http://statistics.data.gov.uk/id/local-authority/30UE,Community Development,Reactive Repair & Maintenance,2020,To undertake EICR`s at the following properties: ADDRESSES REDACTED,01/06/2022,0000478834,"1,600.00",Revenue,Adlec Limited,0
South Ribble Borough Council,http://statistics.data.gov.uk/id/local-authority/30UE,Democratic Represent and  Mgnt,Misc Capital Payments,C234,"To fit new thermostatic mixing valve, remove redundant pipework, remedial works to shower areas and full gas safety check. At Vernon Carus site",10/06/2022,0000478980,950.00,Revenue,Ainscoe Plumbing & Heating Ltd,0
South Ribble Borough Council,http://statistics.data.gov.uk/id/local-authority/30UE,Democratic Represent and  Mgnt,Quality Assurance (BS5750),4548,"Scope confirmation, documentation review, site evaluation, Complete on-site review of management system & Annual Registration Fee",01/06/2022,0000478756,830.00,Revenue,ALCUMUS ISOQAR LTD,0
South Ribble Borough Council,http://statistics.data.gov.uk/id/local-authority/30UE,Central Support Services,Bank Charges,4811,post office,17/06/2022,0000478946,390.54,Revenue,ALLPAY LTD,0
South Ribble Borough Council,http://statistics.data.gov.uk/id/local-authority/30UE,Central Support Services,Bank Charges,4811,paypoint,17/06/2022,0000478946,63.65,Revenue,ALLPAY LTD,0
South Ribble Borough Council,http://statistics.data.gov.uk/id/local-authority/30UE,Capital,Bank Charges,4811,webconn,17/06/2022,0000478946,46.00,Revenue,ALLPAY LTD,0
South Ribble Borough Council,http://statistics.data.gov.uk/id/local-authority/30UE,Community Development,Bank Charges,4811,post office,17/06/2022,0000479329,597.08,Revenue,ALLPAY LTD,0
South Ribble Borough Council,http://statistics.data.gov.uk/id/local-authority/30UE,Central Support Services,Bank Charges,4811,paypoint,17/06/2022,0000479329,72.92,Revenue,ALLPAY LTD,0
South Ribble Borough Council,http://statistics.data.gov.uk/id/local-authority/30UE,Central Support Services,Bank Charges,4811,webconn,17/06/2022,0000479329,46.00,Revenue,ALLPAY LTD,0
South Ribble Borough Council,http://statistics.data.gov.uk/id/local-authority/30UE,Central Support Services,Software Licensing,4243,Initial set up costs + subscription costs (12 months from go live date) - expected 1st May 2022,24/06/2022,0000478261,"10,449.00",Revenue,Alphatec Software Limited,0
South Ribble Borough Council,http://statistics.data.gov.uk/id/local-authority/30UE,Capital,Software Licensing,4243,Initial set up costs + subscription costs (12 months from go live date) - expected 1st May 2022,24/06/2022,0000478261,"5,633.00",Revenue,Alphatec Software Limited,0
South Ribble Borough Council,http://statistics.data.gov.uk/id/local-authority/30UE,Capital,Water Charges(Metered),2511,7/4 to 6/5/22,01/06/2022,0000478930,333.68,Revenue,Anglian Water Business (National) t/as Wave Utilit,0
South Ribble Borough Council,http://statistics.data.gov.uk/id/local-authority/30UE,Central Support Services,Water Charges(Metered),2511,7/4 to 6/5/22,01/06/2022,0000478931,915.71,Revenue,Anglian Water Business (National) t/as Wave Utilit,0
South Ribble Borough Council,http://statistics.data.gov.uk/id/local-authority/30UE,Central Support Services,Water Charges(Metered),2511,7/4 to 6/5/22,01/06/2022,0000478932,873.52,Revenue,Anglian Water Business (National) t/as Wave Utilit,0
South Ribble Borough Council,http://statistics.data.gov.uk/id/local-authority/30UE,Tourism,Water Charges(Metered),2511,7/4 to 6/5/22,01/06/2022,0000478933,"1,773.09",Revenue,Anglian Water Business (National) t/as Wave Utilit,0
South Ribble Borough Council,http://statistics.data.gov.uk/id/local-authority/30UE,Central Support Services,Clothing and Uniforms,4410,Rockfall Ebonite Safety Boot Size 7 - B800152,10/06/2022,0000479208,70.80,Revenue,ARCO,0
South Ribble Borough Council,http://statistics.data.gov.uk/id/local-authority/30UE,Central Support Services,Clothing and Uniforms,4410,Rockfall Ebonite Safety Boot Size 8 -B800153,10/06/2022,0000479208,212.40,Revenue,ARCO,0
South Ribble Borough Council,http://statistics.data.gov.uk/id/local-authority/30UE,Open Spaces,Clothing and Uniforms,4410,Rockfall Ebonite Safety Boot Size 9 -B800154,10/06/2022,0000479208,212.40,Revenue,ARCO,0
South Ribble Borough Council,http://statistics.data.gov.uk/id/local-authority/30UE,Economic Development,Clothing and Uniforms,4410,Rockfall Ebonite Safety Boot Size 10 - B800145,10/06/2022,0000479208,212.40,Revenue,ARCO,0
South Ribble Borough Council,http://statistics.data.gov.uk/id/local-authority/30UE,Capital,Clothing and Uniforms,4410,Rockfall Ebonite Safety Boot Size 11 - B800146,10/06/2022,0000479208,70.80,Revenue,ARCO,0
South Ribble Borough Council,http://statistics.data.gov.uk/id/local-authority/30UE,Capital,Clothing and Uniforms,4410,Rockfall Ebonite Safety Boot Size 13 - B800148,10/06/2022,0000479208,35.40,Revenue,ARCO,0
South Ribble Borough Council,http://statistics.data.gov.uk/id/local-authority/30UE,Service Management & Support,Operational Equip & Tools,4010,Vehicle Standard Van Hire as per NAME REDACTED This order is to cover until end of March 2023,24/06/2022,0000479468,265.96,Revenue,ARNOLD CLARK CAR & VAN RENTAL,0
South Ribble Borough Council,http://statistics.data.gov.uk/id/local-authority/30UE,Central Support Services,Miscellaneous Insurances,4831,"Insurance Policy: Special Events Cancellation, South Ribble Borough Council Effective Date: 28/04/2022 Hiscox Underwriting Limited",24/06/2022,0000479505,"6,350.40",Revenue,Arthur J. Gallagher,0
South Ribble Borough Council,http://statistics.data.gov.uk/id/local-authority/30UE,Central Support Services,Capital Grant,C570,EMPTY HOMES GRANT  AT ADDRESS REDACTED AS PER SRBC PLANS. GRANT ALLOWANCE � ADDRESS REDACTED,17/06/2022,0000479295,"11,250.00",Revenue,ASH BARN CONSTRUCTION LTD,0
South Ribble Borough Council,http://statistics.data.gov.uk/id/local-authority/30UE,Central Support Services,Planned Annual Repair & Maintenance,2021,"2022/2023 to service the roller shutter doors at � Moss side depot, Leyland market, Civic centre, West paddock, Longton brick croft",24/06/2022,0000479506,514.50,Revenue,AVALON DOORS & AWNINGS LTD,0
South Ribble Borough Council,http://statistics.data.gov.uk/id/local-authority/30UE,Economic Development,Planned Annual Repair & Maintenance,2021,Leyland Market,24/06/2022,0000479506,451.50,Revenue,AVALON DOORS & AWNINGS LTD,0
South Ribble Borough Council,http://statistics.data.gov.uk/id/local-authority/30UE,Economic Development,Planned Annual Repair & Maintenance,2021,Civic Centre,24/06/2022,0000479506,246.50,Revenue,AVALON DOORS & AWNINGS LTD,0
South Ribble Borough Council,http://statistics.data.gov.uk/id/local-authority/30UE,Economic Development,Planned Annual Repair & Maintenance,2021,Longton Brickcroft,24/06/2022,0000479506,157.50,Revenue,AVALON DOORS & AWNINGS LTD,0
South Ribble Borough Council,http://statistics.data.gov.uk/id/local-authority/30UE,Economic Development,Publicity & Promotion,4842,To supply 1 x internal ramp at the rear of the supplied van. Ramp Weight  27 kg Max Load Capacity  400KG,17/06/2022,0000479289,"1,427.25",Revenue,B. Conway (Tail Lifts) Ltd,0
South Ribble Borough Council,http://statistics.data.gov.uk/id/local-authority/30UE,Economic Development,Cap Contract Payment,C230,This is for the replacement interceptor and civil groundworks at Moss side depot. As per NAME REDACTED request,24/06/2022,0000479210,"58,405.00",Revenue,Bailey Contracts Ltd,0
South Ribble Borough Council,http://statistics.data.gov.uk/id/local-authority/30UE,Short Term Creditors,Capital Grant,C570,DFG WORK FOR ADAPTATION FOR LEVEL ACCESS BATHROOM AT ADDRESS REDACTED  AS PER QUOTE SUPPLIED,24/06/2022,0000479508,"5,615.00",Revenue,Bambers Remedial Contractors Ltd,0
South Ribble Borough Council,http://statistics.data.gov.uk/id/local-authority/30UE,Short Term Creditors,Plants Trees & Shrubs,4046,"Rosa pink flower carpet, Salvia nemorosa, �Cardonna Nepeta race. Walkers Low Berberis darwinii",01/06/2022,0000478798,914.05,Revenue,BANNISTER HALL LANDSCAPE SUPPLIES,0
South Ribble Borough Council,http://statistics.data.gov.uk/id/local-authority/30UE,Corporate Management,Plants Trees & Shrubs,4046,"Plants for Worden Park, Bellis Way and Hurst Grange Park as per list to be emailed with the order ",01/06/2022,0000478799,"3,296.40",Revenue,BANNISTER HALL LANDSCAPE SUPPLIES,0
South Ribble Borough Council,http://statistics.data.gov.uk/id/local-authority/30UE,Democratic Represent and  Mgnt,Plants Trees & Shrubs,4046,"Plants for Worden Park, Bellis Way and Hurst Grange Park as per list to be emailed with the order ",01/06/2022,0000478839,"1,156.70",Revenue,BANNISTER HALL LANDSCAPE SUPPLIES,0
South Ribble Borough Council,http://statistics.data.gov.uk/id/local-authority/30UE,Central Support Services,Cap Contract Payment,C230,Please supply trees and whips as per the attached list,10/06/2022,0000479130,"10,461.15",Revenue,BANNISTER HALL LANDSCAPE SUPPLIES,0
South Ribble Borough Council,http://statistics.data.gov.uk/id/local-authority/30UE,Capital,Cap Contract Payment,C230,,10/06/2022,0000479130,55.00,Revenue,BANNISTER HALL LANDSCAPE SUPPLIES,0
South Ribble Borough Council,http://statistics.data.gov.uk/id/local-authority/30UE,Surplus or Deficit on Trading,Professional Fees,4510,DISCOVER SOUTH RIBBLE VIDEO AND WATCH AND WIN CAMPAIGN,17/06/2022,0000476840,"3,400.00",Revenue,BAUER RADIO LTD,0
South Ribble Borough Council,http://statistics.data.gov.uk/id/local-authority/30UE,Surplus or Deficit on Trading,Materials General,4040,Provision of After School Meals for the South Ribble - `` HAF SCHEME``. Meals provided,10/06/2022,0000479214,468.00,Revenue,BROTHERS OF CHARITY SERVICES,0
South Ribble Borough Council,http://statistics.data.gov.uk/id/local-authority/30UE,Central Support Services,Professional Fees,4510,Provision of After School Meals for the South Ribble - `` PASTA SCHEME``. Meals provided,17/06/2022,0000479311,912.00,Revenue,BROTHERS OF CHARITY SERVICES,0
South Ribble Borough Council,http://statistics.data.gov.uk/id/local-authority/30UE,Central Support Services,External Contractors Charges,4570,1 x spec repair RV14DTZ JFC17827,10/06/2022,0000478887,159.00,Revenue,Bucher Municipal Ltd,0
South Ribble Borough Council,http://statistics.data.gov.uk/id/local-authority/30UE,Central Support Services,External Contractors Charges,4570,Spec repair carried out on 31.1.22 following initial call out on 14.1.22 RV14 DTZ JFC17827,10/06/2022,0000478887,"2,162.68",Revenue,Bucher Municipal Ltd,0
South Ribble Borough Council,http://statistics.data.gov.uk/id/local-authority/30UE,Community Development,Materials General,4040,1 suction tube 1 rubber flap GX19 GZF JFC18304,10/06/2022,0000478984,293.39,Revenue,Bucher Municipal Ltd,0
South Ribble Borough Council,http://statistics.data.gov.uk/id/local-authority/30UE,Open Spaces,Short Course,1402,NAMES REDACTED TO ATTEND `DOMESTIC RETROFIT` COURSE ON-LINE.,17/06/2022,0000479228,250.00,Revenue,BUILDING RESEARCH ESTABLISHMENT LTD,0
South Ribble Borough Council,http://statistics.data.gov.uk/id/local-authority/30UE,Community Development,Materials General,4040,"x20 Grab bags of 10mm cornflint golden gravel, x1 Roll of fast track 609 woven geotextile Delivery to Worden Park, Leyland",01/06/2022,0000478775,"1,770.42",Revenue,C & W BERRY LTD,0
South Ribble Borough Council,http://statistics.data.gov.uk/id/local-authority/30UE,Economic Development,Technical Support,4246,"Managed Remote support service, Portal Upgrade to latest version",10/06/2022,0000477643,"6,500.00",Revenue,CAPITA BUSINESS SERVICES LTD,0
South Ribble Borough Council,http://statistics.data.gov.uk/id/local-authority/30UE,Central Support Services,Refunded Income,485R,England � Energy Rebate Payment (ERP) Solution 2022,10/06/2022,0000478568,"8,000.00",Revenue,CAPITA BUSINESS SERVICES LTD,0
South Ribble Borough Council,http://statistics.data.gov.uk/id/local-authority/30UE,Recreation & Sport,Miscellaneous Expenses,4851,Jubilee payments,01/06/2022,0000479063,300.00,Revenue,Carole Bolan,0
South Ribble Borough Council,http://statistics.data.gov.uk/id/local-authority/30UE,Central Support Services,Short Course,1402,3 x PLACES ON THE COURSE `INTRODUCTION TO IDEA DATA ANALYSIS,17/06/2022,0000478378,"2,235.00",Revenue,Caseware UK,0
South Ribble Borough Council,http://statistics.data.gov.uk/id/local-authority/30UE,Central Support Services,Miscellaneous Expenses,4851,Governance Review as per proposal,10/06/2022,0000477964,"4,850.00",Revenue,CENTRE FOR PUBLIC SCRUTINY,0
South Ribble Borough Council,http://statistics.data.gov.uk/id/local-authority/30UE,Central Support Services,Chorley Shared Services Costs Staffing,5500,Q4 recharges for 2021/22,01/06/2022,0000478922,"524,283.10",Revenue,CHORLEY BOROUGH COUNCIL,0
South Ribble Borough Council,http://statistics.data.gov.uk/id/local-authority/30UE,Central Support Services,Temporary Accommodation,5311,Estimated damage and void loss for room occupied by TH SRBC placement.,17/06/2022,0000479294,"1,358.70",Revenue,CHORLEY BOROUGH COUNCIL,0
South Ribble Borough Council,http://statistics.data.gov.uk/id/local-authority/30UE,Capital,Temporary Accommodation,5311,cotswold,17/06/2022,0000479294,482.92,Revenue,CHORLEY BOROUGH COUNCIL,0
South Ribble Borough Council,http://statistics.data.gov.uk/id/local-authority/30UE,Central Support Services,Intruder Alarm,2035,cancelled by credit,24/06/2022,0000478366,"3,013.95",Revenue,CHUBB LTD,0
South Ribble Borough Council,http://statistics.data.gov.uk/id/local-authority/30UE,Central Support Services,Intruder Alarm,2035,2022 / 2023  Call out fees for the CCTV at the Civic Centre as per NAME REDACTED,01/06/2022,0000478892,311.20,Revenue,CHUBB LTD,0
South Ribble Borough Council,http://statistics.data.gov.uk/id/local-authority/30UE,Economic Development,Intruder Alarm,2035,Annual Contract 2022/2023 CCTV Leyland Market  Northcote Street Leyland PR25 2AA,01/06/2022,0000478995,258.00,Revenue,CHUBB LTD,0
South Ribble Borough Council,http://statistics.data.gov.uk/id/local-authority/30UE,Central Support Services,Intruder Alarm,2035,Annual Contract 2022/2023  CCTV SRBC PROPERTY SERVICES CIVIC CENTRE WEST PADDOCK,01/06/2022,0000479001,"2,924.03",Revenue,CHUBB LTD,0
South Ribble Borough Council,http://statistics.data.gov.uk/id/local-authority/30UE,Central Support Services,Intruder Alarm,2035,see credit 9366160,24/06/2022,0000479219,540.00,Revenue,CHUBB LTD,0
South Ribble Borough Council,http://statistics.data.gov.uk/id/local-authority/30UE,Surplus or Deficit on Trading,Intruder Alarm,2035,Annual Contract 2022/2023 Intruder Alarm  WORDEN ARTS & CRAFT CENTRE WORDEN PARK,24/06/2022,0000479514,972.36,Revenue,CHUBB LTD,0
South Ribble Borough Council,http://statistics.data.gov.uk/id/local-authority/30UE,Central Support Services,Intruder Alarm,2035,Annual Contract 2022/2023 Intruder Alarm SRBC PROPERTY SERVICES CIVIC CENTRE WEST PADDOCK,24/06/2022,0000479517,"2,157.90",Revenue,CHUBB LTD,0
South Ribble Borough Council,http://statistics.data.gov.uk/id/local-authority/30UE,Surplus or Deficit on Trading,Intruder Alarm,2035,Annual Contract  2022/2023 Intruder Alarm  LEYLAND MUSEUM CHURCH ROAD LEYLAND PR25 3FJ,24/06/2022,0000479518,840.02,Revenue,CHUBB LTD,0
South Ribble Borough Council,http://statistics.data.gov.uk/id/local-authority/30UE,Central Support Services,Intruder Alarm,2035,Annual Contract 2022/2023 Intruder Alarm Moss Side Depot,24/06/2022,0000479520,540.00,Revenue,CHUBB LTD,0
South Ribble Borough Council,http://statistics.data.gov.uk/id/local-authority/30UE,Homelessness,Temporary Accommodation,5311,NAME REDACTED and family 7 nights 30/05/2022 -06/06/2022,24/06/2022,0000479448,696.50,Revenue,CLAREMONT HOTEL,0
South Ribble Borough Council,http://statistics.data.gov.uk/id/local-authority/30UE,Homelessness,Contributions to Other Bodies,4730,NAME REDACTED 7 nights 30/05/2022 - 06/06/2022,24/06/2022,0000479448,315.00,Revenue,CLAREMONT HOTEL,0
South Ribble Borough Council,http://statistics.data.gov.uk/id/local-authority/30UE,Homelessness,Temporary Accommodation,5311,NAME REDACTED nights 30/05/2022 - 06/06/2022,24/06/2022,0000479448,315.00,Revenue,CLAREMONT HOTEL,0
South Ribble Borough Council,http://statistics.data.gov.uk/id/local-authority/30UE,Homelessness,Temporary Accommodation,5311,NAMES REDACTED and child - family room 12 nights 25/05/2022 - 06/06/2022,24/06/2022,0000479448,900.00,Revenue,CLAREMONT HOTEL,0
South Ribble Borough Council,http://statistics.data.gov.uk/id/local-authority/30UE,Homelessness,Temporary Accommodation,5311,"NAME REDACTED room damage charges: Carpet deep clean and patch up, Door handle and shower bar removal and re install, New mattress",24/06/2022,0000479522,510.00,Revenue,CLAREMONT HOTEL,0
South Ribble Borough Council,http://statistics.data.gov.uk/id/local-authority/30UE,Homelessness,Temporary Accommodation,5311,NAME REDACTED and family 7 nights 06/06/2022 - 13/06/2022,24/06/2022,0000479525,696.50,Revenue,CLAREMONT HOTEL,0
South Ribble Borough Council,http://statistics.data.gov.uk/id/local-authority/30UE,Homelessness,Contributions to Other Bodies,4730,NAME REDACTED 7 nights 06/06/2022 - 13/06/2022,24/06/2022,0000479525,315.00,Revenue,CLAREMONT HOTEL,0
South Ribble Borough Council,http://statistics.data.gov.uk/id/local-authority/30UE,Homelessness,Temporary Accommodation,5311,NAME REDACTED 7 nights 06/06/2022 - 13/06/2022,24/06/2022,0000479525,315.00,Revenue,CLAREMONT HOTEL,0
South Ribble Borough Council,http://statistics.data.gov.uk/id/local-authority/30UE,Homelessness,Temporary Accommodation,5311,NAMES REDACTED and child - family room 7 nights 06/06/2022 - 13/06/2022,24/06/2022,0000479525,525.00,Revenue,CLAREMONT HOTEL,0
South Ribble Borough Council,http://statistics.data.gov.uk/id/local-authority/30UE,Capital,Cap Contract Payment,C230,"For the provision of works to the pavilion, car park extension and associated works at Bamber Bridge sports hub",24/06/2022,0000479413,"124,116.06",Revenue,Code Building Solutions Limited,0
South Ribble Borough Council,http://statistics.data.gov.uk/id/local-authority/30UE,Community Development,Core Fund,4861,Windrush event grant for community event on 25 June 2022,10/06/2022,0000479002,550.00,Revenue,Community Network and Outreach,0
South Ribble Borough Council,http://statistics.data.gov.uk/id/local-authority/30UE,Economic Development,Miscellaneous Expenses,4851,Jubilee payments,10/06/2022,0000479019,460.00,Revenue,Community Network and Outreach Service CIC,0
South Ribble Borough Council,http://statistics.data.gov.uk/id/local-authority/30UE,Development Control,Professional Fees,4510,Printing and posting out of large neighbour consultations for planning applications - including Pickerings farm appeal and Farington Business Park.,10/06/2022,0000478891,"2,570.99",Revenue,CRITIQOM,0
South Ribble Borough Council,http://statistics.data.gov.uk/id/local-authority/30UE,Local Tax Collection,Postage General,4291,POSTAGE FOR APRIL TO SEPT 2022,10/06/2022,0000479107,"1,082.41",Revenue,CRITIQOM,0
South Ribble Borough Council,http://statistics.data.gov.uk/id/local-authority/30UE,Local Tax Collection,Postage General,4291,POSTAGE FOR APRIL TO SEPT 2022,10/06/2022,0000479205,"2,701.24",Revenue,CRITIQOM,0
South Ribble Borough Council,http://statistics.data.gov.uk/id/local-authority/30UE,Local Tax Collection,Stationery General,4130,STATIONERY FOR APRIL TO SEPT 2022,10/06/2022,0000479206,348.83,Revenue,CRITIQOM,0
South Ribble Borough Council,http://statistics.data.gov.uk/id/local-authority/30UE,Local Tax Collection,Stationery General,4130,STATIONERY FOR APRIL TO SEPT 2022,24/06/2022,0000479474,473.15,Revenue,CRITIQOM,0
South Ribble Borough Council,http://statistics.data.gov.uk/id/local-authority/30UE,Local Tax Collection,Postage General,4291,POSTAGE FOR APRIL TO SEPT 2022,24/06/2022,0000479475,"1,133.54",Revenue,CRITIQOM,0
South Ribble Borough Council,http://statistics.data.gov.uk/id/local-authority/30UE,Capital,Capital Grant,C570,DFG WORK FOR ADAPTATION FOR LEVEL ACCESS SHOWER AT ADDRESS REDACTED AS PER SRBC PLANS AND QUOTE SUPPLIED,10/06/2022,0000479247,"4,500.00",Revenue,Croston Plumbing & Heating Ltd,0
South Ribble Borough Council,http://statistics.data.gov.uk/id/local-authority/30UE,Central Support Services,Planned Annual Repair & Maintenance,2021,Annual Contract for maintenance 2022/2023 of 1 x  McSmart 240cr Industrial Water Chiller  and 1 x McQuay Air Handling Unit,01/06/2022,0000478905,719.32,Revenue,DAIKIN APPLIED SERVICE,0
South Ribble Borough Council,http://statistics.data.gov.uk/id/local-authority/30UE,Central Support Services,Planned Annual Repair & Maintenance,2021,"1 DAPS STD Chiller: 04 December, 2021 and Jason request 2 Material Listed Below, Lge Ref Receiver Cylinder and Ancillaries",10/06/2022,0000479204,"1,714.90",Revenue,DAIKIN APPLIED SERVICE,0
South Ribble Borough Council,http://statistics.data.gov.uk/id/local-authority/30UE,Homelessness,Temporary Accommodation,5311,MO - 3/6/22 - 30/6/22,10/06/2022,0000479203,420.00,Revenue,David Iddon & Corrina Kellett,0
South Ribble Borough Council,http://statistics.data.gov.uk/id/local-authority/30UE,Central Support Services,Computer Equipment,4241,"Wyse 5470, CTO 250-Dell Multimedia Keyboard-Dell Optical Mouse",10/06/2022,0000478928,"6,803.00",Revenue,DELL CORPORATION LTD,0
South Ribble Borough Council,http://statistics.data.gov.uk/id/local-authority/30UE,Central Support Services,Computer Equipment,4241,"VxRail V670F, All Flash, Dell Networking, Transceiver, 25GbE SFP28 SR, No FEC, MMF, Duplex LC, Customer Kit",24/06/2022,0000479003,"131,521.75",Revenue,DELL CORPORATION LTD,0
South Ribble Borough Council,http://statistics.data.gov.uk/id/local-authority/30UE,Central Support Services,Intruder Alarm,2035,"2022 / 2023 contract for 2 visits per year for the fire alarm service at the Civic Centre, Leyland",10/06/2022,0000479262,400.00,Revenue,DES Electrical Services Ltd,0
South Ribble Borough Council,http://statistics.data.gov.uk/id/local-authority/30UE,Central Support Services,Intruder Alarm,2035,"2022 / 2023 contract, 2 visits per year for fire alarm service at Moss Side Depot",10/06/2022,0000479263,300.00,Revenue,DES Electrical Services Ltd,0
South Ribble Borough Council,http://statistics.data.gov.uk/id/local-authority/30UE,Capital,Misc Capital Payments,C234,Vernon�s Carus Temporary fire alarm system AS PER NAME REDACTED REQUEST,10/06/2022,0000479266,368.65,Revenue,DES Electrical Services Ltd,0
South Ribble Borough Council,http://statistics.data.gov.uk/id/local-authority/30UE,Capital,Misc Capital Payments,C234,"Fire Risk Assesment, Vernon Carus, Factory Lane, Preston, PR1 9SN as per NAME REDACTED request 10th May 2022 Our Ref: 1482",10/06/2022,0000479268,540.00,Revenue,DES Electrical Services Ltd,0
South Ribble Borough Council,http://statistics.data.gov.uk/id/local-authority/30UE,Capital,Misc Capital Payments,C234,"Fire Extinguisher Installation, Vernon Carus, Factory Lane, Preston, PR1 9SN as per NAME REDACTED request and quote 9th May 2022 ",10/06/2022,0000479269,576.00,Revenue,DES Electrical Services Ltd,0
South Ribble Borough Council,http://statistics.data.gov.uk/id/local-authority/30UE,Surplus or Deficit on Trading,Intruder Alarm,2035,2022 - 2023 annual monitoring & maintenance of the intruder alarm at Longton Brickcroft,10/06/2022,0000479270,260.00,Revenue,DES Electrical Services Ltd,0
South Ribble Borough Council,http://statistics.data.gov.uk/id/local-authority/30UE,Economic Development,Public Relations Strategy,4848,Pack of x 100 Chorley Council Lanyards - QTY 2 ,24/06/2022,0000479455,278.95,Revenue,DIGITAL ID LTD,0
South Ribble Borough Council,http://statistics.data.gov.uk/id/local-authority/30UE,Capital,Cap Contract Payment,C230,Description: meter installation as per NAME REDACTED request Bamber Bridge Leisure Centre Pavilion,10/06/2022,0000479230,457.03,Revenue,Energy Assets Ltd,0
South Ribble Borough Council,http://statistics.data.gov.uk/id/local-authority/30UE,Homelessness,Contributions to Other Bodies,4730,CB South Ribble MAPPA costs,24/06/2022,0000479381,"5,023.15",Revenue,Excel Housing Solutions,0
South Ribble Borough Council,http://statistics.data.gov.uk/id/local-authority/30UE,Homelessness,Contributions to Other Bodies,4730,VL Rent arrears on ADDRESS REDACTED,24/06/2022,0000479384,"2,439.37",Revenue,Farrell Heyworth,0
South Ribble Borough Council,http://statistics.data.gov.uk/id/local-authority/30UE,Waste Collection,External Contractors Charges,4570,Residual Waste Collection May 2022,24/06/2022,0000479239,"47,367.71",Revenue,FCC Environment Services (UK) Ltd,0
South Ribble Borough Council,http://statistics.data.gov.uk/id/local-authority/30UE,Recycling,External Contractors Charges,4570,Dry Recycable non terrace May 2022,24/06/2022,0000479239,"48,490.57",Revenue,FCC Environment Services (UK) Ltd,0
South Ribble Borough Council,http://statistics.data.gov.uk/id/local-authority/30UE,Recycling,External Contractors Charges,4570,Dry Recycable terrace May 2022,24/06/2022,0000479239,"2,308.24",Revenue,FCC Environment Services (UK) Ltd,0
South Ribble Borough Council,http://statistics.data.gov.uk/id/local-authority/30UE,Recycling,External Contractors Charges,4570,Organic Waste non terrace May 2022,24/06/2022,0000479239,"33,573.08",Revenue,FCC Environment Services (UK) Ltd,0
South Ribble Borough Council,http://statistics.data.gov.uk/id/local-authority/30UE,Trade Waste,External Contractors Charges,4570,Schedule 2 Properties May 2022,24/06/2022,0000479239,"1,931.17",Revenue,FCC Environment Services (UK) Ltd,0
South Ribble Borough Council,http://statistics.data.gov.uk/id/local-authority/30UE,Trade Waste,External Contractors Charges,4570,Commercial Waste Collections May 2022,24/06/2022,0000479239,"7,517.16",Revenue,FCC Environment Services (UK) Ltd,0
South Ribble Borough Council,http://statistics.data.gov.uk/id/local-authority/30UE,Waste Collection,External Contractors Charges,4570,Bulky Waste Collections May 2022,24/06/2022,0000479239,"1,043.40",Revenue,FCC Environment Services (UK) Ltd,0
South Ribble Borough Council,http://statistics.data.gov.uk/id/local-authority/30UE,Waste Collection,External Contractors Charges,4570,WEEE Collections May 2022,24/06/2022,0000479239,392.02,Revenue,FCC Environment Services (UK) Ltd,0
South Ribble Borough Council,http://statistics.data.gov.uk/id/local-authority/30UE,Waste Collection,External Contractors Charges,4570,Clinical Waste Collections May 2022,24/06/2022,0000479239,667.86,Revenue,FCC Environment Services (UK) Ltd,0
South Ribble Borough Council,http://statistics.data.gov.uk/id/local-authority/30UE,Waste Collection,External Contractors Charges,4570,Replacement Bins May 2022,24/06/2022,0000479239,"5,000.00",Revenue,FCC Environment Services (UK) Ltd,0
South Ribble Borough Council,http://statistics.data.gov.uk/id/local-authority/30UE,Waste Collection,External Contractors Charges,4570,Additional Properties May 2022,24/06/2022,0000479239,"5,408.15",Revenue,FCC Environment Services (UK) Ltd,0
South Ribble Borough Council,http://statistics.data.gov.uk/id/local-authority/30UE,Short Term Creditors,Amount Paid,0030,refuse retention,24/06/2022,0000479239,"-3,216.37",Revenue,FCC Environment Services (UK) Ltd,0
South Ribble Borough Council,http://statistics.data.gov.uk/id/local-authority/30UE,Short Term Creditors,Amount Paid,0030,recycling retention,24/06/2022,0000479239,"-4,218.59",Revenue,FCC Environment Services (UK) Ltd,0
South Ribble Borough Council,http://statistics.data.gov.uk/id/local-authority/30UE,Waste Collection,External Contractors Charges,4570,Additional Bulky Collections- MAY 2022,24/06/2022,0000479402,"1,181.25",Revenue,FCC Environment Services (UK) Ltd,0
South Ribble Borough Council,http://statistics.data.gov.uk/id/local-authority/30UE,Waste Collection,External Contractors Charges,4570,Additional WEEE Collections- MAY 2022,24/06/2022,0000479402,541.68,Revenue,FCC Environment Services (UK) Ltd,0
South Ribble Borough Council,http://statistics.data.gov.uk/id/local-authority/30UE,Short Term Creditors,Amount Paid,0030,retention,24/06/2022,0000479402,-86.15,Revenue,FCC Environment Services (UK) Ltd,0
South Ribble Borough Council,http://statistics.data.gov.uk/id/local-authority/30UE,Economic Development,Miscellaneous Expenses,4851,Jubilee payments,10/06/2022,0000479023,300.00,Revenue,Friends of Coupe Green,0
South Ribble Borough Council,http://statistics.data.gov.uk/id/local-authority/30UE,Open Spaces,GM Refurbishment,4657,Reimbursement for insurance cover - Purchase of tables and chairs - Donation to Wigan Archaeology - Donation to Wyre Archaeology ,10/06/2022,0000479274,"2,830.48",Revenue,FRIENDS OF HURST GRANGE PARK,0
South Ribble Borough Council,http://statistics.data.gov.uk/id/local-authority/30UE,Economic Development,Miscellaneous Expenses,4851,Jubilee payments,10/06/2022,0000479022,316.00,Revenue,Friends Of Strawberry Valley Park,0
South Ribble Borough Council,http://statistics.data.gov.uk/id/local-authority/30UE,Service Management & Support,Diesel Fuel,3132,Diesel supplied 23rd May 2022- 29th May 2022,10/06/2022,0000479119,"2,852.42",Revenue,Fuel Card Services,0
South Ribble Borough Council,http://statistics.data.gov.uk/id/local-authority/30UE,Service Management & Support,Diesel Fuel,3132,Diesel supplied 23rd May 2022- 27th May 2022,10/06/2022,0000479120,"12,247.59",Revenue,Fuel Card Services,0
South Ribble Borough Council,http://statistics.data.gov.uk/id/local-authority/30UE,Service Management & Support,Diesel Fuel,3132,Diesel supplied 6th June- 10th June 2022,24/06/2022,0000479339,"2,813.93",Revenue,Fuel Card Services,0
South Ribble Borough Council,http://statistics.data.gov.uk/id/local-authority/30UE,Service Management & Support,Petrol,3131,Fuel W/C 30.05.2022,24/06/2022,0000479339,277.61,Revenue,Fuel Card Services,0
South Ribble Borough Council,http://statistics.data.gov.uk/id/local-authority/30UE,Service Management & Support,Diesel Fuel,3132,Diesel Supplied 6th June-10th June 2022,24/06/2022,0000479340,"13,052.94",Revenue,Fuel Card Services,0
South Ribble Borough Council,http://statistics.data.gov.uk/id/local-authority/30UE,Service Management & Support,Diesel Fuel,3132,Diesel Supplied 30th May - 31st May 2022,24/06/2022,0000479347,"1,013.05",Revenue,Fuel Card Services,0
South Ribble Borough Council,http://statistics.data.gov.uk/id/local-authority/30UE,Service Management & Support,Diesel Fuel,3132,Diesel Supplied 30th May - 31st May 2022,24/06/2022,0000479348,"5,710.43",Revenue,Fuel Card Services,0
South Ribble Borough Council,http://statistics.data.gov.uk/id/local-authority/30UE,Service Management & Support,Diesel Fuel,3132,Diesel Supplied 02/06/2022-05/06/2022,24/06/2022,0000479401,503.24,Revenue,Fuel Card Services,0
South Ribble Borough Council,http://statistics.data.gov.uk/id/local-authority/30UE,Service Management & Support,Diesel Fuel,3132,Diesel supplied 01/06/2022-05/06/2022,24/06/2022,0000479409,"6,209.04",Revenue,Fuel Card Services,0
South Ribble Borough Council,http://statistics.data.gov.uk/id/local-authority/30UE,Service Management & Support,Diesel Fuel,3132,Diesel Supplied 13/06/22,24/06/2022,0000479499,"2,057.68",Revenue,Fuel Card Services,0
South Ribble Borough Council,http://statistics.data.gov.uk/id/local-authority/30UE,Central Support Services,Reactive Repair & Maintenance,2020,To supply & install 140 linear metres of roof mounted counterbalance handrail Following the installation of solar panels.,10/06/2022,0000479275,"6,958.00",Revenue,Gables Uk Ltd,0
South Ribble Borough Council,http://statistics.data.gov.uk/id/local-authority/30UE,Recreation & Sport,Planned Annual Repair & Maintenance,2021,To carry out roof work at Bamber Bridge LC as per NAME REDACTED. 6th May 2022  for the gutter clean & investigation of the water ingress.  ,10/06/2022,0000479276,970.00,Revenue,Gables Uk Ltd,0
South Ribble Borough Council,http://statistics.data.gov.uk/id/local-authority/30UE,Central Support Services,Reactive Repair & Maintenance,2020,"Civic Centre Leyland Liberal Democrat Room - Civic center, ground floor roof. This is for the safety walkways, to access the solar panels",10/06/2022,0000479277,"12,718.00",Revenue,Gables Uk Ltd,0
South Ribble Borough Council,http://statistics.data.gov.uk/id/local-authority/30UE,Capital,Capital Grant,C570,DFG WORK FOR ADAPTATION TO LEVEL ACCESS SHOWER AND STEPS AT ADDRESS REDACTED AS PER SRBC SPECIFICATION,10/06/2022,0000479187,"5,526.67",Revenue,GOS Heating Ltd,0
South Ribble Borough Council,http://statistics.data.gov.uk/id/local-authority/30UE,Capital,Capital Grant,C570,DFG WORK FOR ADAPTATION ON LEVEL ACCESS SHOWER AT ADDRESS REDACTED AS PER SRBC PLANS AND QUOTE ,10/06/2022,0000479188,"4,324.58",Revenue,GOS Heating Ltd,0
South Ribble Borough Council,http://statistics.data.gov.uk/id/local-authority/30UE,Surplus or Deficit on Trading,Reactive Repair & Maintenance,2020,"ADDRESS REDACTED, Drain down system. Remove existing radiator Supply and fit Type 11 600 x 1600 compact radiator",24/06/2022,0000479476,355.28,Revenue,GOS Heating Ltd,0
South Ribble Borough Council,http://statistics.data.gov.uk/id/local-authority/30UE,Capital,Cap Contract Payment,C230,Works - Provision of Quantity Surveyor Services and Procurement Support Services to RIBA Stage 3 / Leyland Town Deal Project,17/06/2022,0000479285,"1,056.43",Revenue,Gosling Consulting Limited,0
South Ribble Borough Council,http://statistics.data.gov.uk/id/local-authority/30UE,Capital,Cap Contract Payment,C230,Consultancy Services - Worden Hall,24/06/2022,0000479403,"3,850.00",Revenue,Gosling Consulting Limited,0
South Ribble Borough Council,http://statistics.data.gov.uk/id/local-authority/30UE,Recreation & Sport,Advertising,4841,Creative consultancy and assistance on the set up of the South Ribble Leisure Website,01/06/2022,0000473852,300.00,Revenue,Goss Interactive Limited,0
South Ribble Borough Council,http://statistics.data.gov.uk/id/local-authority/30UE,Central Support Services,Materials General,4040,TRANSGEL GRAFFITI REMOVER - 5 LITRES,10/06/2022,0000479192,423.00,Revenue,Graffiti Removal Ltd,0
South Ribble Borough Council,http://statistics.data.gov.uk/id/local-authority/30UE,Capital,Cap Contract Payment,C230,ICN throughout charge - McKenzie Arms,24/06/2022,0000479342,"1,307.19",Revenue,Great Places Housing Group,0
South Ribble Borough Council,http://statistics.data.gov.uk/id/local-authority/30UE,Corporate Management,Grants Voluntary Organisation,4711,Funding grant from Practical Support Payment,17/06/2022,0000478850,"5,500.00",Revenue,GREGSON GREEN HALL MANAGEMENT ACCOUNT,0
South Ribble Borough Council,http://statistics.data.gov.uk/id/local-authority/30UE,Open Spaces,GM Refurbishment,4657,x1 88MIRAGE Mirage Seat and 8mm Sheradised Chain Assembly,10/06/2022,0000479005,584.60,Revenue,HAGS SMP LTD,0
South Ribble Borough Council,http://statistics.data.gov.uk/id/local-authority/30UE,Open Spaces,GM Refurbishment,4657,Delivery,10/06/2022,0000479005,50.00,Revenue,HAGS SMP LTD,0
South Ribble Borough Council,http://statistics.data.gov.uk/id/local-authority/30UE,Central Support Services,Software Licensing,4243,"Access control hardware,Door installation and configuration, Time recording hardware Professional Services, Time recording licensing software",24/06/2022,0000479104,"5,412.00",Revenue,HFX LTD,0
South Ribble Borough Council,http://statistics.data.gov.uk/id/local-authority/30UE,Economic Development,Miscellaneous Expenses,4851,Jubilee payments,10/06/2022,0000479024,506.00,Revenue,Hutton Village Hall Management Committee,0
South Ribble Borough Council,http://statistics.data.gov.uk/id/local-authority/30UE,Central Support Services,Consultancy Fees,4541,10 days technical consultation NAME REDACTED,24/06/2022,0000479415,"6,600.00",Revenue,Hybrit Services Limited,0
South Ribble Borough Council,http://statistics.data.gov.uk/id/local-authority/30UE,Regulatory Services,Operational Equip & Tools,4010,Evolis Primacy R6F003EAA YMCKOK Colour Printer Ribbon,10/06/2022,0000479007,81.98,Revenue,ID Card Centre Limited,0
South Ribble Borough Council,http://statistics.data.gov.uk/id/local-authority/30UE,Regulatory Services,Operational Equip & Tools,4010,Evolis Primacy Printhead Replacement Kit,10/06/2022,0000479007,309.00,Revenue,ID Card Centre Limited,0
South Ribble Borough Council,http://statistics.data.gov.uk/id/local-authority/30UE,Central Support Services,Operational Equip & Tools,4010,NXP MIFARE Classic EV1 1K Plain White Cards Pack of 100,10/06/2022,0000479007,97.85,Revenue,ID Card Centre Limited,0
South Ribble Borough Council,http://statistics.data.gov.uk/id/local-authority/30UE,Central Support Services,Software Licensing,4243,Annual Charge for Uniform System Upgrade (1 per year) Project charge for system merge,24/06/2022,0000478295,"50,000.00",Revenue,IDOX PLC,0
South Ribble Borough Council,http://statistics.data.gov.uk/id/local-authority/30UE,Economic Development,Rental,4012,2022 / 2023 annual contract No C/90123016 for the nappy disposal unit at Leyland Market,10/06/2022,0000479278,531.56,Revenue,INITIAL WASHROOM HYGIENE,0
South Ribble Borough Council,http://statistics.data.gov.uk/id/local-authority/30UE,Economic Development,Cleaning,2710,2022 / 2023 annual contract C/90123016 for 2 standard plus 150 x 250 floor mats at Leyland Market,10/06/2022,0000479278,"1,222.68",Revenue,INITIAL WASHROOM HYGIENE,0
South Ribble Borough Council,http://statistics.data.gov.uk/id/local-authority/30UE,Economic Development,Cleaning,2710,2022 / 2023 contract C/90123016 for the provision of 1 standard plus 115 x 180 carbon graphite mat at Leyland market,10/06/2022,0000479278,347.02,Revenue,INITIAL WASHROOM HYGIENE,0
South Ribble Borough Council,http://statistics.data.gov.uk/id/local-authority/30UE,Economic Development,Planned Annual Repair & Maintenance,2021,Waste transfer charge,10/06/2022,0000479278,39.00,Revenue,INITIAL WASHROOM HYGIENE,0
South Ribble Borough Council,http://statistics.data.gov.uk/id/local-authority/30UE,Central Support Services,Rental,4012,"2022 / 2023 contract No C/90261051 for 1 x extreme mat 85 x 300 at Moss Side Depot 81 Bison Place, Leyland",10/06/2022,0000479278,662.66,Revenue,INITIAL WASHROOM HYGIENE,0
South Ribble Borough Council,http://statistics.data.gov.uk/id/local-authority/30UE,Capital,Cap Contract Payment,C230,Historical fly through of Hurst Grange Coach House,01/06/2022,0000478904,"1,200.00",Revenue,Ivan Wilson Architect,0
South Ribble Borough Council,http://statistics.data.gov.uk/id/local-authority/30UE,Capital,Cap Contract Payment,C230,"5 no  Sorbus Aucuparia, 10 no Tree stakes, 5 no Crossbars, 5 no Tree brock, 5 no Strapping ",01/06/2022,0000478851,627.50,Revenue,J A JONES & SONS,0
South Ribble Borough Council,http://statistics.data.gov.uk/id/local-authority/30UE,Capital,Cap Contract Payment,C230,Costs for work on the refurbishment of Worden Hall Central Buildings,24/06/2022,0000479450,"168,803.77",Revenue,John Turner Construction Group Ltd,0
South Ribble Borough Council,http://statistics.data.gov.uk/id/local-authority/30UE,Capital,Cap Contract Payment,C230,Costs for work on the refurbishment of Worden Hall Central Buildings,24/06/2022,0000479452,"228,913.04",Revenue,John Turner Construction Group Ltd,0
South Ribble Borough Council,http://statistics.data.gov.uk/id/local-authority/30UE,Open Spaces,Hiring Expenses,3212,1.5T excavator on trailer hired for 5 weeks from 09/05/2022,24/06/2022,0000479009,295.00,Revenue,K H HIRE SERVICES,0
South Ribble Borough Council,http://statistics.data.gov.uk/id/local-authority/30UE,Open Spaces,Hiring Expenses,3212,1.5T excavator on trailer hired for 5 weeks from 09/05/2022,24/06/2022,0000479183,295.00,Revenue,K H HIRE SERVICES,0
South Ribble Borough Council,http://statistics.data.gov.uk/id/local-authority/30UE,Central Support Services,Clothing and Uniforms,4410,FLAME RETARDANT COVERALL - PORTWEST BIZ 7  - MEDIUM c/w SRBC LOGO FRONT LEFT BREAST & REAR HS COLOUR BIZ7,10/06/2022,0000478445,168.30,Revenue,KEY ENGINEERING & HYGIENE SUPPLIES LTD,0
South Ribble Borough Council,http://statistics.data.gov.uk/id/local-authority/30UE,Central Support Services,Clothing and Uniforms,4410,FLAME RETARDANT COVERALL- PORTWEST BIZ 7  - XLARGE  c/w SRBC LOGO FRONT LEFT BREAST & REAR HS COLOUR BIZ7,10/06/2022,0000478445,168.30,Revenue,KEY ENGINEERING & HYGIENE SUPPLIES LTD,0
South Ribble Borough Council,http://statistics.data.gov.uk/id/local-authority/30UE,Central Support Services,Clothing and Uniforms,4410,POLO SHIRT - SHORT SLEEVED NAVY -  SMALL c/w SRBC LOGO FRONT LEFT BREAST HS WHITE UC122,10/06/2022,0000478445,15.60,Revenue,KEY ENGINEERING & HYGIENE SUPPLIES LTD,0
South Ribble Borough Council,http://statistics.data.gov.uk/id/local-authority/30UE,Central Support Services,Clothing and Uniforms,4410,POLO SHIRT LONG SLEEVED NAVY -  SMALL c/w SRBC LOGO FRONT LEFT BREAST HS WHITE UC113,10/06/2022,0000478445,21.84,Revenue,KEY ENGINEERING & HYGIENE SUPPLIES LTD,0
South Ribble Borough Council,http://statistics.data.gov.uk/id/local-authority/30UE,Central Support Services,Clothing and Uniforms,4410,SWEATSHIRT NAVY -  MEDIUM c/w SRBC LOGO FRONT LEFT BREAST HS WHITE UC203,10/06/2022,0000478445,16.56,Revenue,KEY ENGINEERING & HYGIENE SUPPLIES LTD,0
South Ribble Borough Council,http://statistics.data.gov.uk/id/local-authority/30UE,Central Support Services,Clothing and Uniforms,4410,HI VIS TRAFFIC  JACKET YELLOW EN471:2003 MEDIUM WITH  SRBC Logo Front Left Breast & Rear HS in COLOUR S460,10/06/2022,0000478445,30.00,Revenue,KEY ENGINEERING & HYGIENE SUPPLIES LTD,0
South Ribble Borough Council,http://statistics.data.gov.uk/id/local-authority/30UE,Central Support Services,Clothing and Uniforms,4410,GLOVES - WINTER HV EN388 2.2.4.3  SIZE 8 A185,10/06/2022,0000478445,27.60,Revenue,KEY ENGINEERING & HYGIENE SUPPLIES LTD,0
South Ribble Borough Council,http://statistics.data.gov.uk/id/local-authority/30UE,Central Support Services,Clothing and Uniforms,4410,colour transfer,10/06/2022,0000478445,16.00,Revenue,KEY ENGINEERING & HYGIENE SUPPLIES LTD,0
South Ribble Borough Council,http://statistics.data.gov.uk/id/local-authority/30UE,Central Support Services,Clothing and Uniforms,4410,front white transfer,10/06/2022,0000478445,11.00,Revenue,KEY ENGINEERING & HYGIENE SUPPLIES LTD,0
South Ribble Borough Council,http://statistics.data.gov.uk/id/local-authority/30UE,Elections,Electoral Administration Act,4970,70 YELLOW VESTS + 12 ORANGE VESTS - ALL WITH THE *NEW* SRBC LOGO ON THE FRONT AND BACK - ALL SIZE XL,17/06/2022,0000479279,276.34,Revenue,KEY ENGINEERING & HYGIENE SUPPLIES LTD,0
South Ribble Borough Council,http://statistics.data.gov.uk/id/local-authority/30UE,Surplus or Deficit on Trading,Rents,2401,"Payment of annual rental charge at Forward Industrial Estate, L2 Property Limited for 2022/2023",24/06/2022,0000479352,"16,147.50",Revenue,L2 Property Limited,0
South Ribble Borough Council,http://statistics.data.gov.uk/id/local-authority/30UE,Surplus or Deficit on Trading,Rents,2401,less ground rent,24/06/2022,0000479352,"-2,850.00",Revenue,L2 Property Limited,0
South Ribble Borough Council,http://statistics.data.gov.uk/id/local-authority/30UE,Central Support Services,Materials General,4040,AdBlue IBC - 1000 litres ,10/06/2022,0000478855,890.00,Revenue,LANCASHIRE OILS LTD,0
South Ribble Borough Council,http://statistics.data.gov.uk/id/local-authority/30UE,Local Land Charges,L C C General,4530,LAND CHARGES - APRIL 2022,01/06/2022,0000478926,"1,358.00",Revenue,LANCS COUNTY COUNCIL,0
South Ribble Borough Council,http://statistics.data.gov.uk/id/local-authority/30UE,Trade Waste,Landfilll Charges,5412,"Quarter 4 Disposal Fee, Landfill Tax & 5% Admin Fee",24/06/2022,0000478978,"60,778.35",Revenue,LANCS COUNTY COUNCIL,0
South Ribble Borough Council,http://statistics.data.gov.uk/id/local-authority/30UE,Capital Grants & Contributions,Amount Paid,0030,"S106 Bus service contribution relating to development at Land at Grey Gables Farm, ADDRESS REDACTED",24/06/2022,0000479446,"150,000.00",Revenue,LANCS COUNTY COUNCIL,0
South Ribble Borough Council,http://statistics.data.gov.uk/id/local-authority/30UE,Central Support Services,Materials General,4040,Rear brake chamber YD19 ATK JFC 18448,01/06/2022,0000478917,510.16,Revenue,LANCS DAF,0
South Ribble Borough Council,http://statistics.data.gov.uk/id/local-authority/30UE,Central Support Services,Materials General,4040,1 AIR BAG YD19 ATK JFC18464,10/06/2022,0000479125,305.00,Revenue,LANCS DAF,0
South Ribble Borough Council,http://statistics.data.gov.uk/id/local-authority/30UE,Central Support Services,Materials General,4040,Rear anti roll bar brushes DX19 XBJ JFC 18497,24/06/2022,0000479406,44.96,Revenue,LANCS DAF,0
South Ribble Borough Council,http://statistics.data.gov.uk/id/local-authority/30UE,Central Support Services,Materials General,4040,Brake pads Front anti roll bar brushes YE19 JPW JFC 18465,24/06/2022,0000479406,209.59,Revenue,LANCS DAF,0
South Ribble Borough Council,http://statistics.data.gov.uk/id/local-authority/30UE,Open Spaces,Professional Fees,4510,"Work: Tree planting, pond improvement and boardwalk construction as per NAME REDACTED request ",01/06/2022,0000478856,"3,187.00",Revenue,LANCS WILDLIFE TRUST,0
South Ribble Borough Council,http://statistics.data.gov.uk/id/local-authority/30UE,Open Spaces,External Contractors Charges,4570,"Root Cutter, Jetvac and CCTV unit for 2 days at New Longton Playing Field, Chapel Lane, PR4 4AA",01/06/2022,0000478857,"4,838.00",Revenue,LANES GROUP PLC,0
South Ribble Borough Council,http://statistics.data.gov.uk/id/local-authority/30UE,Open Spaces,Materials General,4040,3x signs including 76mm x 4m  galvanised posts,17/06/2022,0000478903,350.22,Revenue,LCC SIGN SHOP,0
South Ribble Borough Council,http://statistics.data.gov.uk/id/local-authority/30UE,Open Spaces,GM Refurbishment,4657,"5x 80x6mm Punched & galv bars for Balustrade Wall, Worden Park",24/06/2022,0000479258,615.00,Revenue,Leyland Lane Wrought Iron Gates & Railings,0
South Ribble Borough Council,http://statistics.data.gov.uk/id/local-authority/30UE,Central Support Services,Reactive Repair & Maintenance,2020,"To replace damaged sections of the perimeter security fencing, at Moss side depot.As per NAME REDACTED",10/06/2022,0000479259,520.00,Revenue,Leyland Lane Wrought Iron Gates & Railings,0
South Ribble Borough Council,http://statistics.data.gov.uk/id/local-authority/30UE,Community Development,Core Fund,4861,"To fund 50% of the costs of a new CCTV system from 1st Look Fire and Security, to reduce ASB (match-funded by LANPAC/Police)",10/06/2022,0000479181,670.00,Revenue,LEYLAND WARRIORS RUGBY LEAGUE CLUB,0
South Ribble Borough Council,http://statistics.data.gov.uk/id/local-authority/30UE,Central Support Services,Subscriptions General,4721,Financial Intelligence Toolkit Subscription 2022/23,24/06/2022,0000479393,"7,440.00",Revenue,LG FUTURES,0
South Ribble Borough Council,http://statistics.data.gov.uk/id/local-authority/30UE,Democratic Represent and  Mgnt,Corp Subs to Professional Bodies,4720,LGA MEMBERESHIP SUBSCRIPTION RENEWAL FOR 2022-23,01/06/2022,0000478888,"11,381.46",Revenue,LGA (LOCAL GOVERNMENT ASSOCIATION),0
South Ribble Borough Council,http://statistics.data.gov.uk/id/local-authority/30UE,Corporate Management,Grants Voluntary Organisation,4711,Grant funding for Practical Support Payments,10/06/2022,0000478860,"5,500.00",Revenue,LONGTON VM SPORTS & SOCIAL CLUB,0
South Ribble Borough Council,http://statistics.data.gov.uk/id/local-authority/30UE,Community Development,Miscellaneous Expenses,4851,"To provide the band for the events of Leyland Cross Christmas Switch on, Lostock Hall Christmas switch on and Bamber Bridge switch on",10/06/2022,0000479122,345.00,Revenue,LOSTOCK HALL MEMORIAL BAND,0
South Ribble Borough Council,http://statistics.data.gov.uk/id/local-authority/30UE,Capital,Capital Grant,C570,DFG WORK FOR ADAPTATION FOR EXTTENSION AT ADDRESS REDACTED AS PER SRBC PLANS AND QUOTE SUPPLIED,10/06/2022,0000479180,"20,730.40",Revenue,LTL CONSTRUCTION & MAINTENANCE LTD,0
South Ribble Borough Council,http://statistics.data.gov.uk/id/local-authority/30UE,Parking Services,Materials General,4040,X2 HERN AVENUE T,17/06/2022,0000478976,98.00,Revenue,Main Street Signs Ltd,0
South Ribble Borough Council,http://statistics.data.gov.uk/id/local-authority/30UE,Parking Services,Materials General,4040,X2 WINGATES T,17/06/2022,0000478976,93.60,Revenue,Main Street Signs Ltd,0
South Ribble Borough Council,http://statistics.data.gov.uk/id/local-authority/30UE,Parking Services,Materials General,4040,X2 SCHOOL LANE,17/06/2022,0000478976,92.00,Revenue,Main Street Signs Ltd,0
South Ribble Borough Council,http://statistics.data.gov.uk/id/local-authority/30UE,Parking Services,Materials General,4040,X1 CROWNLEE T,17/06/2022,0000478976,46.80,Revenue,Main Street Signs Ltd,0
South Ribble Borough Council,http://statistics.data.gov.uk/id/local-authority/30UE,Parking Services,Materials General,4040,X1 _ PRETORIA STREET,17/06/2022,0000478976,53.40,Revenue,Main Street Signs Ltd,0
South Ribble Borough Council,http://statistics.data.gov.uk/id/local-authority/30UE,Parking Services,Materials General,4040,X2 MEANYGATE,17/06/2022,0000478976,89.80,Revenue,Main Street Signs Ltd,0
South Ribble Borough Council,http://statistics.data.gov.uk/id/local-authority/30UE,Parking Services,Materials General,4040,X2 JUBILEE ROAD ,17/06/2022,0000478976,138.20,Revenue,Main Street Signs Ltd,0
South Ribble Borough Council,http://statistics.data.gov.uk/id/local-authority/30UE,Parking Services,Materials General,4040,X2 LAWRENCE AVENUE,17/06/2022,0000478976,100.80,Revenue,Main Street Signs Ltd,0
South Ribble Borough Council,http://statistics.data.gov.uk/id/local-authority/30UE,Parking Services,Materials General,4040,DELIVERY CHARGE,17/06/2022,0000478976,42.00,Revenue,Main Street Signs Ltd,0
South Ribble Borough Council,http://statistics.data.gov.uk/id/local-authority/30UE,Central Support Services,Materials General,4040,4 x Repairing injectors PO16 HMY JFC 18280,01/06/2022,0000478881,180.00,Revenue,MERLIN DIESEL SYSTEM LTD,0
South Ribble Borough Council,http://statistics.data.gov.uk/id/local-authority/30UE,Central Support Services,Materials General,4040,3 X repairing injectors PO16 HMU OW 1240,01/06/2022,0000478881,135.00,Revenue,MERLIN DIESEL SYSTEM LTD,0
South Ribble Borough Council,http://statistics.data.gov.uk/id/local-authority/30UE,Central Support Services,Legal,4821,PROFESSIONAL SERVICES IN RESPECT OF ADDRESS REDACTED INQUIRY,24/06/2022,0000479292,787.50,Revenue,MR IAN PONTER,0
South Ribble Borough Council,http://statistics.data.gov.uk/id/local-authority/30UE,Central Support Services,Computer Equipment,4241,"20x TECHGEAR UTILITY Case fits iPad Air 4, Tough Rugged HEAVY DUTY Armour Shockproof Case, Hand Strap and Shoulder Strap Case ",17/06/2022,0000479178,938.80,Revenue,MYPREMIER LTD,0
South Ribble Borough Council,http://statistics.data.gov.uk/id/local-authority/30UE,Central Support Services,IT Consumables,413A,"BOLT TabDock Bizmount AMPs - Heavy Duty Drill base mount For Cars, Desks, Countertops: Great For Commercial Vehicles",24/06/2022,0000479399,755.60,Revenue,MYPREMIER LTD,0
South Ribble Borough Council,http://statistics.data.gov.uk/id/local-authority/30UE,Central Support Services,Legal,4821,Drafting of lease and other legal documentation in respect of grant of lease at address redacted to NFM Iddon Limited.,10/06/2022,0000479121,"1,035.06",Revenue,NAPTHENS LLP SOLICITORS,0
South Ribble Borough Council,http://statistics.data.gov.uk/id/local-authority/30UE,Development Control,Advertising,4841,Publication of planning publicity press notices in the LEP - April 2022 to March 2023,10/06/2022,0000478902,972.00,Revenue,National World Publishing Limited,0
South Ribble Borough Council,http://statistics.data.gov.uk/id/local-authority/30UE,Development Control,Advertising,4841,Publication of planning publicity press notices in the LEP - April 2022 to March 2023,10/06/2022,0000479177,810.00,Revenue,National World Publishing Limited,0
South Ribble Borough Council,http://statistics.data.gov.uk/id/local-authority/30UE,Central Support Services,External Contractors Charges,4570,"SUPPLIER REFERENCE: GJ / CRM /133362 Set Up Fee, Annual Service Charge (based on the Annual Quota of Hard Copy Images)	",17/06/2022,0000479011,"1,125.00",Revenue,NEC Software Solutions UK Ltd,0
South Ribble Borough Council,http://statistics.data.gov.uk/id/local-authority/30UE,Corporate Management,Grants Voluntary Organisation,4711,Grant funding for Practical Support Payment,10/06/2022,0000477760,"5,000.00",Revenue,New Friends For You,0
South Ribble Borough Council,http://statistics.data.gov.uk/id/local-authority/30UE,Recreation & Sport,Operational Equip & Tools,4010,COSHH Cabinet 1219 H x 915 W x 457 D (mm). 2 doors and 2 shelves.,10/06/2022,0000479256,327.00,Revenue,Northern Storage & Interiors Ltd,0
South Ribble Borough Council,http://statistics.data.gov.uk/id/local-authority/30UE,Recreation & Sport,Operational Equip & Tools,4010,Taurus mesh back meeting room stackable chair with no arms- black,24/06/2022,0000479302,"1,351.50",Revenue,Northern Storage & Interiors Ltd,0
South Ribble Borough Council,http://statistics.data.gov.uk/id/local-authority/30UE,Recreation & Sport,Operational Equip & Tools,4010,Rectangular deluxe fliptop meeting table with Silver frame 1600mm x 800mm - White,24/06/2022,0000479302,"1,343.16",Revenue,Northern Storage & Interiors Ltd,0
South Ribble Borough Council,http://statistics.data.gov.uk/id/local-authority/30UE,Recreation & Sport,Operational Equip & Tools,4010,Semi circular deluxe fliptop meeting table with silver frame 1600mm x 800mm - White,24/06/2022,0000479302,701.62,Revenue,Northern Storage & Interiors Ltd,0
South Ribble Borough Council,http://statistics.data.gov.uk/id/local-authority/30UE,Recreation & Sport,Operational Equip & Tools,4010,Delivery and Installation,24/06/2022,0000479302,748.00,Revenue,Northern Storage & Interiors Ltd,0
South Ribble Borough Council,http://statistics.data.gov.uk/id/local-authority/30UE,Economic Development,Professional Fees,4510,First Aid Provision For Music in the Park,24/06/2022,0000479416,"2,250.00",Revenue,NorWest Ambulance T/A NorWest Medical,0
South Ribble Borough Council,http://statistics.data.gov.uk/id/local-authority/30UE,Central Support Services,Planned Annual Repair & Maintenance,2021,Order for Meter Operating Services at Civic Centre as per name redacted and invoice received for April 2022 to March 2023,24/06/2022,0000479441,432.00,Revenue,NPOWER LTD,0
South Ribble Borough Council,http://statistics.data.gov.uk/id/local-authority/30UE,Parking Services,Parking Attendants,4514,Variable Fee Car Park Enforcement April 2022 - Variable Recharge Items,10/06/2022,0000479101,"1,664.10",Revenue,NSL LTD,0
South Ribble Borough Council,http://statistics.data.gov.uk/id/local-authority/30UE,Parking Services,Cash Collection Charges Car Parks,4855,Variable Fee Car Park Enforcement April 2022 - Fixed Recharge Items,10/06/2022,0000479101,745.52,Revenue,NSL LTD,0
South Ribble Borough Council,http://statistics.data.gov.uk/id/local-authority/30UE,Central Support Services,College Course,1403,"CIPS EXAM FEES L5M1, L5M4, L5M8 AND L5M15 - NAME REDACTED",17/06/2022,0000478901,470.00,Revenue,OXFORD PROFESSIONAL EDUCATIONGROUP,0
South Ribble Borough Council,http://statistics.data.gov.uk/id/local-authority/30UE,Democratic Represent and  Mgnt,Operational Equip & Tools,4010,XMAS1727 - Stainless Steel Vacuum Jug,10/06/2022,0000478802,385.00,Revenue,Pattersons (Bristol) Ltd,0
South Ribble Borough Council,http://statistics.data.gov.uk/id/local-authority/30UE,Economic Development,Professional Fees,4510,Photography cover at events in 2022/23,24/06/2022,0000479542,600.00,Revenue,PAUL HEYES PHOTOGRAPHY LTD,0
South Ribble Borough Council,http://statistics.data.gov.uk/id/local-authority/30UE,Capital,Cap Contract Payment,C230,For the refurbishment of the toilets at Moss Side Depot,10/06/2022,0000479105,"22,619.00",Revenue,PDP PROPERTY SERVICES LTD,0
South Ribble Borough Council,http://statistics.data.gov.uk/id/local-authority/30UE,Central Support Services,Occupational Health,1408,"PROVISION OF WELLBEING, TELEPHONE CONSULTATIONS AND COUNSELLING FROM APRIL 2022",10/06/2022,0000478890,346.00,Revenue,People Asset Management,0
South Ribble Borough Council,http://statistics.data.gov.uk/id/local-authority/30UE,Regulatory Services,Professional Fees,4510,Consultancy Services - per NAME REDACTED,01/06/2022,0000478923,"30,680.21",Revenue,Perfect Circle JV Ltd,0
South Ribble Borough Council,http://statistics.data.gov.uk/id/local-authority/30UE,Recycling,Contract Printing,4127,Provision and posting of Garden Waste permits 2022 and hosting of permit management website.,01/06/2022,0000478921,"3,718.64",Revenue,Permiserv Ltd,0
South Ribble Borough Council,http://statistics.data.gov.uk/id/local-authority/30UE,Capital,Cap Contract Payment,C230,"MEP Consultancy Services RIBA Stage 3 - Jubilee Gardens Extra Care, West Paddock, Leyland",10/06/2022,0000478681,"16,560.00",Revenue,Pettit Singleton Associates Ltd,0
South Ribble Borough Council,http://statistics.data.gov.uk/id/local-authority/30UE,Capital,Cap Contract Payment,C230,Provision of Mechanical Electrical and Plumbing (MEP) Services (Stages 1-2) for the delivery of an Extra Care Facility at West Paddock,10/06/2022,0000478682,"21,500.00",Revenue,Pettit Singleton Associates Ltd,0
South Ribble Borough Council,http://statistics.data.gov.uk/id/local-authority/30UE,Central Support Services,Software Licensing,4243,Microsoft Licences 3 year term.,24/06/2022,0000479175,"171,911.37",Revenue,PHOENIX SOFTWARE LTD,0
South Ribble Borough Council,http://statistics.data.gov.uk/id/local-authority/30UE,Economic Development,Advertising,4841,10 x Medium Feather Banner,24/06/2022,0000479371,800.00,Revenue,Poppy Signs Ltd,0
South Ribble Borough Council,http://statistics.data.gov.uk/id/local-authority/30UE,Corporate Management,Grants Voluntary Organisation,4711,South Ribble postcard/Social isolation printing,17/06/2022,0000478971,"2,000.00",Revenue,Preston City Council,0
South Ribble Borough Council,http://statistics.data.gov.uk/id/local-authority/30UE,Corporate Management,Grants Voluntary Organisation,4711,Printing of social isolation booklet,17/06/2022,0000478972,"2,500.00",Revenue,Preston City Council,0
South Ribble Borough Council,http://statistics.data.gov.uk/id/local-authority/30UE,Central Support Services,Materials General,4040,TR241- various tyres,01/06/2022,0000478899,732.95,Revenue,PRESTON TYRE SPECIALISTS,0
South Ribble Borough Council,http://statistics.data.gov.uk/id/local-authority/30UE,Surplus or Deficit on Trading,Reactive Repair & Maintenance,2020,Attend Moss Side Com Centre and do emergency boarding up as per NAME REDACTED request following recent vandalism over weekend,10/06/2022,0000477789,500.00,Revenue,PSR & Sons Joiners & Building Contractors,0
South Ribble Borough Council,http://statistics.data.gov.uk/id/local-authority/30UE,Surplus or Deficit on Trading,Planned Annual Repair & Maintenance,2021,"REMEDIAL WORKS TO LEYLAND WARRIERS, MANUFACTURE AND INSTALL NEW DOOR AND CASING ",10/06/2022,0000477790,"1,365.00",Revenue,PSR & Sons Joiners & Building Contractors,0
South Ribble Borough Council,http://statistics.data.gov.uk/id/local-authority/30UE,Recreation & Sport,Reactive Repair & Maintenance,2020,Remove Existing Notice boards and take away from site. Supply and Install 3 External Weather shield Lockable Show Case fire Rated Boards,10/06/2022,0000478221,"1,760.00",Revenue,PSR & Sons Joiners & Building Contractors,0
South Ribble Borough Council,http://statistics.data.gov.uk/id/local-authority/30UE,Surplus or Deficit on Trading,Reactive Repair & Maintenance,2020,Please undertake works to Moss Side Village Hall as detailed in your quotation ref Q4749,10/06/2022,0000478222,"8,200.00",Revenue,PSR & Sons Joiners & Building Contractors,0
South Ribble Borough Council,http://statistics.data.gov.uk/id/local-authority/30UE,Surplus or Deficit on Trading,Reactive Repair & Maintenance,2020,LABOUR,10/06/2022,0000478222,425.75,Revenue,PSR & Sons Joiners & Building Contractors,0
South Ribble Borough Council,http://statistics.data.gov.uk/id/local-authority/30UE,Surplus or Deficit on Trading,Reactive Repair & Maintenance,2020,Carry out work to ceiling and worden park. To Over board existing Ceiling with 9 mm Ply fixed according following by Fire Rated plaster board,10/06/2022,0000478345,550.00,Revenue,PSR & Sons Joiners & Building Contractors,0
South Ribble Borough Council,http://statistics.data.gov.uk/id/local-authority/30UE,Surplus or Deficit on Trading,Reactive Repair & Maintenance,2020,LABOUR,10/06/2022,0000478345,20.00,Revenue,PSR & Sons Joiners & Building Contractors,0
South Ribble Borough Council,http://statistics.data.gov.uk/id/local-authority/30UE,Recreation & Sport,Planned Annual Repair & Maintenance,2021,"REMEDIAL WORKS TO PENWORTHAM LC, To Board over damaged window as required completed with painting to match",10/06/2022,0000479168,560.00,Revenue,PSR & Sons Joiners & Building Contractors,0
South Ribble Borough Council,http://statistics.data.gov.uk/id/local-authority/30UE,Recreation & Sport,Planned Annual Repair & Maintenance,2021,LABOUR,10/06/2022,0000479168,80.00,Revenue,PSR & Sons Joiners & Building Contractors,0
South Ribble Borough Council,http://statistics.data.gov.uk/id/local-authority/30UE,Surplus or Deficit on Trading,Reactive Repair & Maintenance,2020,"Please board up the smashed Windows over the Bank holiday at Rumpus, and order glass for repair as per NAME REDACTED",10/06/2022,0000479169,520.00,Revenue,PSR & Sons Joiners & Building Contractors,0
South Ribble Borough Council,http://statistics.data.gov.uk/id/local-authority/30UE,Surplus or Deficit on Trading,Reactive Repair & Maintenance,2020,materials,10/06/2022,0000479169,63.80,Revenue,PSR & Sons Joiners & Building Contractors,0
South Ribble Borough Council,http://statistics.data.gov.uk/id/local-authority/30UE,Surplus or Deficit on Trading,Reactive Repair & Maintenance,2020,"REMEDIAL WORKS TO LEYLAND WARRIERS. Additional boarding ALL ELEVATIONS, To Remove all Defective Boarding to Sides Apex Areas ",24/06/2022,0000479344,400.00,Revenue,PSR & Sons Joiners & Building Contractors,0
South Ribble Borough Council,http://statistics.data.gov.uk/id/local-authority/30UE,Surplus or Deficit on Trading,Reactive Repair & Maintenance,2020,Labour,24/06/2022,0000479344,70.00,Revenue,PSR & Sons Joiners & Building Contractors,0
South Ribble Borough Council,http://statistics.data.gov.uk/id/local-authority/30UE,Recreation & Sport,Reactive Repair & Maintenance,2020,"REMEDIAL WORKS TO MOSS SIDE COMMUNITY CENTRE: NEW WINDOW RE: REGLAZE WINDOWS, To Remove all damaged glass",24/06/2022,0000479345,"2,847.20",Revenue,PSR & Sons Joiners & Building Contractors,0
South Ribble Borough Council,http://statistics.data.gov.uk/id/local-authority/30UE,Recreation & Sport,Reactive Repair & Maintenance,2020,LABOUR,24/06/2022,0000479345,100.00,Revenue,PSR & Sons Joiners & Building Contractors,0
South Ribble Borough Council,http://statistics.data.gov.uk/id/local-authority/30UE,Recreation & Sport,Refunded Income,485R,Refund,24/06/2022,0000479494,"13,910.00",Revenue,PSR & Sons Joiners & Building Contractors,0
South Ribble Borough Council,http://statistics.data.gov.uk/id/local-authority/30UE,Homelessness,Temporary Accommodation,5311,Additonal rooms May 2022. NAME REDACTED Room 34 - 12/05 - 01/06/2022 ,24/06/2022,0000479554,950.00,Revenue,Purpleroomz,0
South Ribble Borough Council,http://statistics.data.gov.uk/id/local-authority/30UE,Homelessness,Contributions to Other Bodies,4730,NAME REDACTED Room 29 - 16/05 - 01/06/2022 16 nights,24/06/2022,0000479554,800.00,Revenue,Purpleroomz,0
South Ribble Borough Council,http://statistics.data.gov.uk/id/local-authority/30UE,Homelessness,Temporary Accommodation,5311,NAME REDACTED 23/05 - 24/05/2022 1 night ,24/06/2022,0000479554,50.00,Revenue,Purpleroomz,0
South Ribble Borough Council,http://statistics.data.gov.uk/id/local-authority/30UE,Homelessness,Contributions to Other Bodies,4730,2x block booked rooms for June 2022,24/06/2022,0000479555,"2,976.00",Revenue,Purpleroomz,0
South Ribble Borough Council,http://statistics.data.gov.uk/id/local-authority/30UE,Homelessness,Temporary Accommodation,5311,NAME REDACTED block booking June 2022 ,24/06/2022,0000479555,"1,488.00",Revenue,Purpleroomz,0
South Ribble Borough Council,http://statistics.data.gov.uk/id/local-authority/30UE,Homelessness,Temporary Accommodation,5311,NAME REDACTED block booking June 2022 ,24/06/2022,0000479555,"1,488.00",Revenue,Purpleroomz,0
South Ribble Borough Council,http://statistics.data.gov.uk/id/local-authority/30UE,Homelessness,Temporary Accommodation,5311,NAME REDACTED 06/06 - 07/06/2022,24/06/2022,0000479555,50.00,Revenue,Purpleroomz,0
South Ribble Borough Council,http://statistics.data.gov.uk/id/local-authority/30UE,Homelessness,Temporary Accommodation,5311,NAMES REDACTED family room,24/06/2022,0000479555,803.25,Revenue,Purpleroomz,0
South Ribble Borough Council,http://statistics.data.gov.uk/id/local-authority/30UE,Open Spaces,Hiring Expenses,3212,Telehandler Hire,10/06/2022,0000479102,344.00,Revenue,Readyplant Limited,0
South Ribble Borough Council,http://statistics.data.gov.uk/id/local-authority/30UE,Open Spaces,Hiring Expenses,3212,Delivery,10/06/2022,0000479102,100.00,Revenue,Readyplant Limited,0
South Ribble Borough Council,http://statistics.data.gov.uk/id/local-authority/30UE,Democratic Represent and  Mgnt,Civic & Remembrance Day,463A,"TO TAKE THE MAYOR`S PORTRAIT AND PROVIDE THE PRINTS, DIGITAL COPIES AND FRAMED COPY AS DISCUSSED",01/06/2022,0000478864,400.00,Revenue,Red Frog Photography (Karen Riches),0
South Ribble Borough Council,http://statistics.data.gov.uk/id/local-authority/30UE,Open Spaces,External Contractors Charges,4570,"Drainage investigations at Nixon Lane, Leyland",01/06/2022,0000478817,600.00,Revenue,RED ROSE BUILDING MAINTENANCE,0
South Ribble Borough Council,http://statistics.data.gov.uk/id/local-authority/30UE,Surplus or Deficit on Trading,Planned Annual Repair & Maintenance,2021,Hurst Grange 2022/2023 4 visits,10/06/2022,0000479165,180.00,Revenue,RED ROSE BUILDING MAINTENANCE,0
South Ribble Borough Council,http://statistics.data.gov.uk/id/local-authority/30UE,Surplus or Deficit on Trading,Planned Annual Repair & Maintenance,2021,labour,10/06/2022,0000479165,100.00,Revenue,RED ROSE BUILDING MAINTENANCE,0
South Ribble Borough Council,http://statistics.data.gov.uk/id/local-authority/30UE,Capital,Misc Capital Payments,C234,Supply and install 150M duct and pipework as to accommodate the new 3phase electrical supply at Vernon Carus Site as per NAME REDACTED,17/06/2022,0000479320,"2,500.00",Revenue,RED ROSE BUILDING MAINTENANCE,0
South Ribble Borough Council,http://statistics.data.gov.uk/id/local-authority/30UE,Capital,Misc Capital Payments,C234,LABOUR,17/06/2022,0000479320,"1,500.00",Revenue,RED ROSE BUILDING MAINTENANCE,0
South Ribble Borough Council,http://statistics.data.gov.uk/id/local-authority/30UE,Capital,Misc Capital Payments,C234,Supply and install 150M duct and pipework as to accommodate the new 3phase electrical supply at Vernon Carus Site as per NAME REDACTED,24/06/2022,0000479433,"7,000.00",Revenue,RED ROSE BUILDING MAINTENANCE,0
South Ribble Borough Council,http://statistics.data.gov.uk/id/local-authority/30UE,Capital,Misc Capital Payments,C234,LABOUR,24/06/2022,0000479433,"5,000.00",Revenue,RED ROSE BUILDING MAINTENANCE,0
South Ribble Borough Council,http://statistics.data.gov.uk/id/local-authority/30UE,Community Development,Miscellaneous Expenses,4851,Storage for Holiday Hunger Food,10/06/2022,0000479103,280.00,Revenue,Red Rose Self Storage Limited,0
South Ribble Borough Council,http://statistics.data.gov.uk/id/local-authority/30UE,Homelessness,Contributions to Other Bodies,4730,Agreed rent arrears NAME & ADDRESS REDACTED,10/06/2022,0000478865,"2,375.00",Revenue,Reeds Rains,0
South Ribble Borough Council,http://statistics.data.gov.uk/id/local-authority/30UE,Central Support Services,Materials General,4040,Overhaul back end materials YA19 NJZ JFC 18458,10/06/2022,0000479142,"2,670.48",Revenue,Refuse Vehicle Parts,0
South Ribble Borough Council,http://statistics.data.gov.uk/id/local-authority/30UE,Central Support Services,Materials General,4040,6X rave flat rubbers - Bin GO54,10/06/2022,0000479143,876.00,Revenue,Refuse Vehicle Parts,0
South Ribble Borough Council,http://statistics.data.gov.uk/id/local-authority/30UE,Central Support Services,Materials General,4040,1x G001 striker spring,10/06/2022,0000479144,83.67,Revenue,Refuse Vehicle Parts,0
South Ribble Borough Council,http://statistics.data.gov.uk/id/local-authority/30UE,Central Support Services,Materials General,4040,2x G008 Proxy Switch (979944A),10/06/2022,0000479144,89.87,Revenue,Refuse Vehicle Parts,0
South Ribble Borough Council,http://statistics.data.gov.uk/id/local-authority/30UE,Central Support Services,Materials General,4040,2x G015 Barrier Arm (5012241),10/06/2022,0000479144,224.57,Revenue,Refuse Vehicle Parts,0
South Ribble Borough Council,http://statistics.data.gov.uk/id/local-authority/30UE,Central Support Services,Materials General,4040,2x G032 Tailgate Seal (106219-0),10/06/2022,0000479144,331.34,Revenue,Refuse Vehicle Parts,0
South Ribble Borough Council,http://statistics.data.gov.uk/id/local-authority/30UE,Central Support Services,Materials General,4040,1x G033 Tailgate Strip (5028849),10/06/2022,0000479144,69.20,Revenue,Refuse Vehicle Parts,0
South Ribble Borough Council,http://statistics.data.gov.uk/id/local-authority/30UE,Central Support Services,Materials General,4040,1x G039 Hopper Top Cover,10/06/2022,0000479144,156.11,Revenue,Refuse Vehicle Parts,0
South Ribble Borough Council,http://statistics.data.gov.uk/id/local-authority/30UE,Central Support Services,Materials General,4040,1x G058 Hopper Lock Proxi Switch (979947),10/06/2022,0000479144,54.00,Revenue,Refuse Vehicle Parts,0
South Ribble Borough Council,http://statistics.data.gov.uk/id/local-authority/30UE,Central Support Services,Materials General,4040,2x G051 Clamp Springs,10/06/2022,0000479144,680.00,Revenue,Refuse Vehicle Parts,0
South Ribble Borough Council,http://statistics.data.gov.uk/id/local-authority/30UE,Recreation & Sport,Planned Annual Repair & Maintenance,2021,"2021/22 annual contract, 2 visits per year, for the Caterclean package at South Ribble Tennis Centre & initial clean as detailed in the survey report  ",01/06/2022,0000478925,595.00,Revenue,Rentokil Intitial UK Ltd,0
South Ribble Borough Council,http://statistics.data.gov.uk/id/local-authority/30UE,Economic Development,Advertising,4841,Advert in the Leyland Life magazine as per NAME REDACTED request ,10/06/2022,0000478966,600.00,Revenue,Ribble Publications Ltd,0
South Ribble Borough Council,http://statistics.data.gov.uk/id/local-authority/30UE,Waste Collection,Consultancy Fees,4541,Consultancy Fees for the Review of Options for the Delivery of the Waste Contract service. January 2022,17/06/2022,0000479129,"6,210.00",Revenue,RICARDO-AEA LIMITED,0
South Ribble Borough Council,http://statistics.data.gov.uk/id/local-authority/30UE,Central Support Services,Photocopier Lease Rental,4036,EQV5,10/06/2022,0000478937,"10,453.69",Revenue,RICOH (UK) LTD,0
South Ribble Borough Council,http://statistics.data.gov.uk/id/local-authority/30UE,Community Development,Miscellaneous Expenses,4851,Description: no waiting cones for Vernon carus event as per NAME REDACTED,10/06/2022,0000479164,402.00,Revenue,Road Safety Services LTD,0
South Ribble Borough Council,http://statistics.data.gov.uk/id/local-authority/30UE,Surplus or Deficit on Trading,Service Charge,485C,1/1 to 31/12/22,10/06/2022,0000479111,587.00,Revenue,ROBERT PINKUS (MANAGEMENT SERVICES) LTD,0
South Ribble Borough Council,http://statistics.data.gov.uk/id/local-authority/30UE,Surplus or Deficit on Trading,Service Charge,485C,1/1 to 31/12/22,10/06/2022,0000479112,587.00,Revenue,ROBERT PINKUS (MANAGEMENT SERVICES) LTD,0
South Ribble Borough Council,http://statistics.data.gov.uk/id/local-authority/30UE,Surplus or Deficit on Trading,Service Charge,485C,1/1 to 31/12/22,10/06/2022,0000479113,587.00,Revenue,ROBERT PINKUS (MANAGEMENT SERVICES) LTD,0
South Ribble Borough Council,http://statistics.data.gov.uk/id/local-authority/30UE,Surplus or Deficit on Trading,Service Charge,485C,1/1 to 31/12/2,10/06/2022,0000479114,587.00,Revenue,ROBERT PINKUS (MANAGEMENT SERVICES) LTD,0
South Ribble Borough Council,http://statistics.data.gov.uk/id/local-authority/30UE,Surplus or Deficit on Trading,Service Charge,485C,1/1 to 31/12/22,10/06/2022,0000479115,587.00,Revenue,ROBERT PINKUS (MANAGEMENT SERVICES) LTD,0
South Ribble Borough Council,http://statistics.data.gov.uk/id/local-authority/30UE,Surplus or Deficit on Trading,Service Charge,485C,1/1 to 31/12/22,10/06/2022,0000479116,587.00,Revenue,ROBERT PINKUS (MANAGEMENT SERVICES) LTD,0
South Ribble Borough Council,http://statistics.data.gov.uk/id/local-authority/30UE,Surplus or Deficit on Trading,Service Charge,485C,1/1 to 31/12/22,10/06/2022,0000479117,587.00,Revenue,ROBERT PINKUS (MANAGEMENT SERVICES) LTD,0
South Ribble Borough Council,http://statistics.data.gov.uk/id/local-authority/30UE,Central Support Services,Operational Equip & Tools,4010,Sealey pneumatic tyre changer TC962,10/06/2022,0000479123,730.00,Revenue,Roland Barnes Maintenance,0
South Ribble Borough Council,http://statistics.data.gov.uk/id/local-authority/30UE,Democratic Represent and  Mgnt,Civic & Remembrance Day,463A,8 x frames for the Mayor`s portraits,10/06/2022,0000478898,550.00,Revenue,ROY TURNER,0
South Ribble Borough Council,http://statistics.data.gov.uk/id/local-authority/30UE,Economic Development,Miscellaneous Expenses,4851,Jubilee payments,10/06/2022,0000479057,"2,800.00",Revenue,Royal British Legion,0
South Ribble Borough Council,http://statistics.data.gov.uk/id/local-authority/30UE,Capital,Cap Contract Payment,C230,"McKenzie Arms, Bamber Bridge (Housing Development)",24/06/2022,0000479370,"174,694.07",Revenue,RP Tyson Construction Ltd,0
South Ribble Borough Council,http://statistics.data.gov.uk/id/local-authority/30UE,Democratic Represent and  Mgnt,Operational Equip & Tools,4010,Vogue Polypropylene Mobile Trolley Small Material: Polypropylene Size: 960(H) x 415(W) x 830(D)mm Capacity: 130kg,24/06/2022,0000478869,357.00,Revenue,Rytetype Limited,0
South Ribble Borough Council,http://statistics.data.gov.uk/id/local-authority/30UE,Democratic Represent and  Mgnt,Cost of Food,4310,"Hot Buffet, meat and potato pie with trimmings x 93",10/06/2022,0000478876,460.35,Revenue,SA Licensed  Services,0
South Ribble Borough Council,http://statistics.data.gov.uk/id/local-authority/30UE,Capital,Cap Contract Payment,C230,Reinstatement cost assessment for Worden Hall as per NAME REDACTED,17/06/2022,0000479162,700.00,Revenue,Sanderson Weatherall LLP,0
South Ribble Borough Council,http://statistics.data.gov.uk/id/local-authority/30UE,Short Term Debtors,Amount Paid,0030,To supply continued Commercial Estates support for the Test Track mixed use development as per NAME REDACTED for 2 years ,10/06/2022,0000479163,"3,049.17",Revenue,Sanderson Weatherall LLP,0
South Ribble Borough Council,http://statistics.data.gov.uk/id/local-authority/30UE,Capital,Cap Contract Payment,C230,Lifecycle costing - BREEAM MAN 02 - Extra Care (West Paddock),24/06/2022,0000479411,"2,400.00",Revenue,SDA Consulting LLP,0
South Ribble Borough Council,http://statistics.data.gov.uk/id/local-authority/30UE,Capital,Cap Contract Payment,C230,Worden hall - Temporary Signage,01/06/2022,0000478916,330.00,Revenue,SIGNS PRESTON LTD T/A SIGNS EXPRESS CENTRAL LANCS,0
South Ribble Borough Council,http://statistics.data.gov.uk/id/local-authority/30UE,Economic Development,Materials General,4040,Bunting for Leyland Town Centre,24/06/2022,0000479543,"1,150.00",Revenue,SJ Services,0
South Ribble Borough Council,http://statistics.data.gov.uk/id/local-authority/30UE,Regulatory Services,External Contractors Charges,4570,"To empty bath, toilet and sink, remove rubbish in property and dispose of at ADDRESS REDACTED - per NAME REDACTED.",01/06/2022,0000478736,"1,440.00",Revenue,SMJ CONTRACT CLEANING,0
South Ribble Borough Council,http://statistics.data.gov.uk/id/local-authority/30UE,Central Support Services,Software Licensing,4243,Renewal of Contract AutoCAD - including specialized toolsets Commercial Single-user Annual Subscription Renewal 5 x  AutoCAD LT ,24/06/2022,0000477738,"9,223.59",Revenue,SOFTCAT LIMITED,0
South Ribble Borough Council,http://statistics.data.gov.uk/id/local-authority/30UE,Recreation & Sport,Reactive Repair & Maintenance,2020,For the below areas to be cleaned: as per NAME REDACTED as per quotation dated 23rd May 2022,10/06/2022,0000479158,"1,390.00",Revenue,South Ribble Cleaning Services T/A CoxheadCleaning,0
South Ribble Borough Council,http://statistics.data.gov.uk/id/local-authority/30UE,Central Support Services,Hiring Expenses,3212,VX13 LSZ - damages recharged following hire period (to be recharged to Chorley FCC),10/06/2022,0000479229,"1,794.86",Revenue,Southfield RCV Services Limited,0
South Ribble Borough Council,http://statistics.data.gov.uk/id/local-authority/30UE,Central Support Services,Hiring Expenses,3212,Hire of RCV (7th & 8th March) Delivery of vehicle Collection of vehicle,24/06/2022,0000479296,600.00,Revenue,Southfield RCV Services Limited,0
South Ribble Borough Council,http://statistics.data.gov.uk/id/local-authority/30UE,Central Support Services,Hiring Expenses,3212,Hire of RCV VN12 LBY 7.3.22 - 11.3.22 Delivery of vehicle Collection of vehicle,24/06/2022,0000479297,"1,050.00",Revenue,Southfield RCV Services Limited,0
South Ribble Borough Council,http://statistics.data.gov.uk/id/local-authority/30UE,Central Support Services,Hiring Expenses,3212,Hire of RCV VX13 LSZ 7.3.22 - 24.3.22,24/06/2022,0000479298,"2,100.00",Revenue,Southfield RCV Services Limited,0
South Ribble Borough Council,http://statistics.data.gov.uk/id/local-authority/30UE,Central Support Services,Safety  Equipment,4016,FPA100 Fabric Plasters Assorted Box of 100 Sterile,01/06/2022,0000478667,13.90,Revenue,SR8 Group Ltd,0
South Ribble Borough Council,http://statistics.data.gov.uk/id/local-authority/30UE,Central Support Services,Safety  Equipment,4016,HSMD HSE Medium Dressing 12cm x 12cm Sterile,01/06/2022,0000478667,19.80,Revenue,SR8 Group Ltd,0
South Ribble Borough Council,http://statistics.data.gov.uk/id/local-authority/30UE,Central Support Services,Safety  Equipment,4016,EP16-C Blue Dot Boxed Eye Pad & Bandage No16 ,01/06/2022,0000478667,7.00,Revenue,SR8 Group Ltd,0
South Ribble Borough Council,http://statistics.data.gov.uk/id/local-authority/30UE,Central Support Services,Safety  Equipment,4016,BLKTF Adult`s Foil Thermal Insulation Blanket 130cm x 210cm,01/06/2022,0000478667,25.00,Revenue,SR8 Group Ltd,0
South Ribble Borough Council,http://statistics.data.gov.uk/id/local-authority/30UE,Central Support Services,Safety  Equipment,4016,QBC420 Burncare non adherent sterile Burn gel 10cm x 10cm,01/06/2022,0000478667,28.00,Revenue,SR8 Group Ltd,0
South Ribble Borough Council,http://statistics.data.gov.uk/id/local-authority/30UE,Central Support Services,Safety  Equipment,4016,TWEEZER-S Tweezers - 3`` Nickle- Individual,01/06/2022,0000478667,8.70,Revenue,SR8 Group Ltd,0
South Ribble Borough Council,http://statistics.data.gov.uk/id/local-authority/30UE,Central Support Services,Safety  Equipment,4016,WIPE1 Alcohol Free Sterile Wound Cleansing Wipes Box of 100,01/06/2022,0000478667,11.90,Revenue,SR8 Group Ltd,0
South Ribble Borough Council,http://statistics.data.gov.uk/id/local-authority/30UE,Central Support Services,Safety  Equipment,4016,MP25 Microporous Non-Woven Tape 2.5cm x 10m,01/06/2022,0000478667,15.00,Revenue,SR8 Group Ltd,0
South Ribble Borough Council,http://statistics.data.gov.uk/id/local-authority/30UE,Central Support Services,Safety  Equipment,4016,ISO Resus Shield with One-Way Valve -Single Use,01/06/2022,0000478667,19.90,Revenue,SR8 Group Ltd,0
South Ribble Borough Council,http://statistics.data.gov.uk/id/local-authority/30UE,Central Support Services,Safety  Equipment,4016,QE0711 Qualicare Sterile Eye wash pods 20ml box of 25,01/06/2022,0000478667,99.50,Revenue,SR8 Group Ltd,0
South Ribble Borough Council,http://statistics.data.gov.uk/id/local-authority/30UE,Central Support Services,Safety  Equipment,4016,carriage,01/06/2022,0000478667,6.95,Revenue,SR8 Group Ltd,0
South Ribble Borough Council,http://statistics.data.gov.uk/id/local-authority/30UE,Recreation & Sport,Electricity,2303,2/3 to 1/4/22,17/06/2022,0000479337,278.58,Revenue,SSE 691852372 Moss Side CC Dunkirk Hall,0
South Ribble Borough Council,http://statistics.data.gov.uk/id/local-authority/30UE,Community Development,Miscellaneous Expenses,4851,Donation Day - Leyland Hotel,17/06/2022,0000479286,600.00,Revenue,St Catherines Hospice Trading Ltd,0
South Ribble Borough Council,http://statistics.data.gov.uk/id/local-authority/30UE,Capital,Cap Contract Payment,C230,The Mill - Outside Catering Breakfast Event 28th April 2022 - Breakfast Barms 75 X,10/06/2022,0000479100,287.50,Revenue,St Catherines Social Enterprise Ltd,0
South Ribble Borough Council,http://statistics.data.gov.uk/id/local-authority/30UE,Central Support Services,Computer Equipment,4241,25x Nokia 105 (2019 edition) 1.77 Inch UK SIM Free Feature Phone (Single SIM),17/06/2022,0000479303,525.00,Revenue,Starcom Technologies,0
South Ribble Borough Council,http://statistics.data.gov.uk/id/local-authority/30UE,Capital,Cap Contract Payment,C230,For the Project Management of the construction of the new Playing pitch at Bamber Bridge Leisure Centre and support in the preparation,24/06/2022,0000479424,"3,500.00",Revenue,Steve Wells Associates Ltd,0
South Ribble Borough Council,http://statistics.data.gov.uk/id/local-authority/30UE,Community Development,Miscellaneous Expenses,4851,Penwortham Live Volunteer food boxes,10/06/2022,0000479118,431.28,Revenue,Style Catering,0
South Ribble Borough Council,http://statistics.data.gov.uk/id/local-authority/30UE,Democratic Represent and  Mgnt,External Catering Charges,4575,PLEASE PROVIDE A BUFFET FOR ANNUAL COUNCIL ON WEDNESDAY 20 MAY 2022,10/06/2022,0000479156,739.20,Revenue,Style Catering,0
South Ribble Borough Council,http://statistics.data.gov.uk/id/local-authority/30UE,Democratic Represent and  Mgnt,At Home Expenditure,4629,PLEASE PROVIDE A BUFFET FOR THE MAYOR`S AT HOME EVENT ON THURSDAY 5 MAY 2022,24/06/2022,0000479423,494.40,Revenue,Style Catering,0
South Ribble Borough Council,http://statistics.data.gov.uk/id/local-authority/30UE,Central Support Services,Reactive Repair & Maintenance,2020,Repair the contact blocks and replace two motor clips. As per NAME REDACTED - visit to be planned for May ,10/06/2022,0000479255,810.00,Revenue,STYLE MOVEABLE PARTITION SPECIALISTS,0
South Ribble Borough Council,http://statistics.data.gov.uk/id/local-authority/30UE,Central Support Services,Other Fees,4520,NAFN SUBSCRIPTION FOR 2022/23,17/06/2022,0000478953,"1,600.00",Revenue,TAMESIDE METROPOLITAN BOROUGH COUNCIL,0
South Ribble Borough Council,http://statistics.data.gov.uk/id/local-authority/30UE,Capital,Cap Contract Payment,C230,"WEST PADDOCK, LEYLAND (EXTRA CARE) � ARBORICULTURAL IMPACT ASSESSMENT",10/06/2022,0000478392,"1,273.50",Revenue,The Environment Partnership (TEP) Limited,0
South Ribble Borough Council,http://statistics.data.gov.uk/id/local-authority/30UE,Community Development,Miscellaneous Expenses,4851,For activities for the Jubilee Party in the Park in June. Please mention ``supported by SRBC`` in the publicity,10/06/2022,0000479154,"2,000.00",Revenue,THE GREGSON GREEN STEERING GROUP,0
South Ribble Borough Council,http://statistics.data.gov.uk/id/local-authority/30UE,Central Support Services,Network and Security,4247,South Ribble Transceivers and Sundries for Network Replacement,01/06/2022,0000478810,"3,411.37",Revenue,The Networking People (TNP) Ltd,0
South Ribble Borough Council,http://statistics.data.gov.uk/id/local-authority/30UE,Central Support Services,Agency Staff,1121,"For Agency Staff, NAME REDACTED (Project Surveyor) to work a total of 81 days to first week of Jan 2022  7th Jan 2022 extension.",24/06/2022,0000479364,"1,400.00",Revenue,The Oyster Partnership,0
South Ribble Borough Council,http://statistics.data.gov.uk/id/local-authority/30UE,Central Support Services,Occupational Health,1408,6 SESSIONS OF COUNSELLING FOR NAME REDACTED AS AGREED,10/06/2022,0000478815,270.00,Revenue,The Wellbeing Centre (Rachel Dickinson),0
South Ribble Borough Council,http://statistics.data.gov.uk/id/local-authority/30UE,Capital,Cap Contract Payment,C230,Leyland Town Deal - Timber Condition Survey,24/06/2022,0000478734,"2,500.00",Revenue,Timberwise (UK) Ltd,0
South Ribble Borough Council,http://statistics.data.gov.uk/id/local-authority/30UE,Capital,Cap Contract Payment,C230,"Leyland Town Deal - Additional Services, Timber Condition Survey",24/06/2022,0000478734,"10,030.00",Revenue,Timberwise (UK) Ltd,0
South Ribble Borough Council,http://statistics.data.gov.uk/id/local-authority/30UE,Central Support Services,Gas,2304,24/1 to 28/2/22,17/06/2022,0000479331,"2,563.83",Revenue,Total Gas & power Ltd,0
South Ribble Borough Council,http://statistics.data.gov.uk/id/local-authority/30UE,Central Support Services,Electricity,2303,30/4 to 31/5/22,24/06/2022,0000479466,"1,025.24",Revenue,Total Gas & power Ltd,0
South Ribble Borough Council,http://statistics.data.gov.uk/id/local-authority/30UE,Tourism,Electricity,2303,1/5 to 31/5/22,24/06/2022,0000479478,"1,155.82",Revenue,Total Gas & power Ltd,0
South Ribble Borough Council,http://statistics.data.gov.uk/id/local-authority/30UE,Central Support Services,Electricity,2303,1/5 to 31/5/22,24/06/2022,0000479480,"2,684.30",Revenue,Total Gas & power Ltd,0
South Ribble Borough Council,http://statistics.data.gov.uk/id/local-authority/30UE,Central Support Services,Electricity,2303,1/5 to 31/5/22,24/06/2022,0000479482,"2,349.18",Revenue,Total Gas & power Ltd,0
South Ribble Borough Council,http://statistics.data.gov.uk/id/local-authority/30UE,Open Spaces,Electricity,2303,1/5 to 31/5/22,24/06/2022,0000479493,509.43,Revenue,Total Gas & power Ltd,0
South Ribble Borough Council,http://statistics.data.gov.uk/id/local-authority/30UE,Economic Development,Miscellaneous Expenses,4851,Jubilee payments,10/06/2022,0000479061,271.92,Revenue,Tracy Robinson,0
South Ribble Borough Council,http://statistics.data.gov.uk/id/local-authority/30UE,Capital,Cap Expenditure Other,C750,2021-22 DOUBLE GLAZING SCHEME FUNDS AS PER TENDER SPECIFICATIONS,24/06/2022,0000479236,"2,293.17",Revenue,TRADE WINDOWS & CONSERVATORIES,0
South Ribble Borough Council,http://statistics.data.gov.uk/id/local-authority/30UE,Capital,Cap Expenditure Other,C750,2021-22 DOUBLE GLAZING SCHEME FUNDS AS PER TENDER SPECIFICATIONS,24/06/2022,0000479254,"8,465.67",Revenue,TRADE WINDOWS & CONSERVATORIES,0
South Ribble Borough Council,http://statistics.data.gov.uk/id/local-authority/30UE,Service Management & Support,External Contractors Charges,4570,ELITE Standard Support Annual Hardware Support 1.6.22 -2.3.23 (pro rata to match software licence renewal),24/06/2022,0000479351,656.25,Revenue,TRISCAN SYSTEMS LIMITED,0
South Ribble Borough Council,http://statistics.data.gov.uk/id/local-authority/30UE,Central Support Services,Clothing and Uniforms,4410,Handwipes YHW/WEILS,10/06/2022,0000479151,409.80,Revenue,Tudor (UK) Ltd t/a Tudor Environmental,0
South Ribble Borough Council,http://statistics.data.gov.uk/id/local-authority/30UE,Central Support Services,UK Healthcare,1710,01 mar 22,10/06/2022,0000478618,"1,505.74",Revenue,UK healthcare (BDHSC),0
South Ribble Borough Council,http://statistics.data.gov.uk/id/local-authority/30UE,Central Support Services,UK Healthcare,1710,01 apr 22,10/06/2022,0000478619,"1,435.20",Revenue,UK healthcare (BDHSC),0
South Ribble Borough Council,http://statistics.data.gov.uk/id/local-authority/30UE,Economic Development,Miscellaneous Expenses,4851,"Marketing for MITP, Domain purchase & protection, Paid ads, Contingency funds (will be used dependant on sales) Marketing costs",10/06/2022,0000479242,"2,341.48",Revenue,UK Media Events Ltd,0
South Ribble Borough Council,http://statistics.data.gov.uk/id/local-authority/30UE,Economic Development,Miscellaneous Expenses,4851,,10/06/2022,0000479242,750.00,Revenue,UK Media Events Ltd,0
South Ribble Borough Council,http://statistics.data.gov.uk/id/local-authority/30UE,Economic Development,Printing General,4120,AirMesh Acoustically Transparent AirMesh Band Banner - Side Wings of Stage 2.5m x 7.5m With Hems & Eyelets Mesh Banner,24/06/2022,0000479487,"1,050.00",Revenue,UK Media Events Ltd,0
South Ribble Borough Council,http://statistics.data.gov.uk/id/local-authority/30UE,Economic Development,Miscellaneous Expenses,4851,Special Effects Package Showven Sparkulars with granules (used at key points throughout the show) G flame complete with gas canisters,24/06/2022,0000479488,"1,480.00",Revenue,UK Media Events Ltd,0
South Ribble Borough Council,http://statistics.data.gov.uk/id/local-authority/30UE,Economic Development,External Catering Charges,4575,Artist Riders Pat Sharp Travel HoCo Polystyrene Box with Ice Dressing Room Riders As per artist contracts Accommodation Dr & The Medics  ,24/06/2022,0000479489,"1,946.94",Revenue,UK Media Events Ltd,0
South Ribble Borough Council,http://statistics.data.gov.uk/id/local-authority/30UE,Democratic Represent and  Mgnt,Operational Equip & Tools,4010,Water cooler for the shield,10/06/2022,0000479146,395.00,Revenue,VENDING ENTERPRISES,0
South Ribble Borough Council,http://statistics.data.gov.uk/id/local-authority/30UE,Central Support Services,Agency Staff,1121,COST OF ENGAGING LOCUM SOLICITOR NAME REDACTED - CONTRACT BEGINS 6 MAY 2022,10/06/2022,0000479150,"1,851.68",Revenue,VENN GROUP LTD,0
South Ribble Borough Council,http://statistics.data.gov.uk/id/local-authority/30UE,Capital,Cap Contract Payment,C230,Leyland Town Deal - Fire Door Survey,01/06/2022,0000478186,737.30,Revenue,Ventro Limited,0
South Ribble Borough Council,http://statistics.data.gov.uk/id/local-authority/30UE,Surplus or Deficit on Trading,Agency Staff,1121,To offer an Interim Estates Surveyor position  to NAME REDACTED to provide professions surveying services for the duration of the contract,01/06/2022,0000478809,"1,856.50",Revenue,Vivid Resourcing,0
South Ribble Borough Council,http://statistics.data.gov.uk/id/local-authority/30UE,Surplus or Deficit on Trading,Agency Staff,1121,To offer an Interim Estates Surveyor position  to NAME REDACTED to provide professions surveying services for the duration of the contract,24/06/2022,0000479235,"1,598.00",Revenue,Vivid Resourcing,0
South Ribble Borough Council,http://statistics.data.gov.uk/id/local-authority/30UE,Surplus or Deficit on Trading,Agency Staff,1121,To offer an Interim Estates Surveyor position  to NAME REDACTED to provide professions surveying services for the duration of the contract,24/06/2022,0000479405,"1,198.50",Revenue,Vivid Resourcing,0
South Ribble Borough Council,http://statistics.data.gov.uk/id/local-authority/30UE,Central Support Services,Network and Security,4247,1st mar 22,10/06/2022,0000479085,"2,404.20",Revenue,VODAFONE RE:CABLE & WIRELESS UK,0
South Ribble Borough Council,http://statistics.data.gov.uk/id/local-authority/30UE,Central Support Services,Network and Security,4247,1st apr,10/06/2022,0000479086,"2,404.20",Revenue,VODAFONE RE:CABLE & WIRELESS UK,0
South Ribble Borough Council,http://statistics.data.gov.uk/id/local-authority/30UE,Central Support Services,Network and Security,4247,1st may 22,10/06/2022,0000479089,"2,404.20",Revenue,VODAFONE RE:CABLE & WIRELESS UK,0
South Ribble Borough Council,http://statistics.data.gov.uk/id/local-authority/30UE,Community Development,Professional Fees,4510,Easter Camps for HAF,10/06/2022,0000479251,"1,680.00",Revenue,Wade Hall Community Association,0
South Ribble Borough Council,http://statistics.data.gov.uk/id/local-authority/30UE,Open Spaces,Plants Trees & Shrubs,4046,Supply of Summer Bedding plants as per quotation. Contact should be made with NAME REDACTED ,24/06/2022,0000478949,"4,730.28",Revenue,Walkers Nurseries Chester Ltd,0
South Ribble Borough Council,http://statistics.data.gov.uk/id/local-authority/30UE,Community Development,Core Fund,4861,To provide funds to kick start the work the club needs to do,17/06/2022,0000479149,300.00,Revenue,Walton le Dale Bowling Club,0
South Ribble Borough Council,http://statistics.data.gov.uk/id/local-authority/30UE,Economic Development,Miscellaneous Expenses,4851,string quartet for leyland festival - 02/06/2022 2 x 45 at approx 1.30pm and 3.30pm [Arts Stage],24/06/2022,0000479503,400.00,Revenue,Warner Entertainments,0
South Ribble Borough Council,http://statistics.data.gov.uk/id/local-authority/30UE,Central Support Services,Legal,4821,PROFESSIONAL SERVICES WITH REGARD TO THE TEST TRACK - NAME REDACTED - W15581-5,24/06/2022,0000479410,"1,290.00",Revenue,WEIGHTMANS LLP,0
South Ribble Borough Council,http://statistics.data.gov.uk/id/local-authority/30UE,Recreation & Sport,Planned Annual Repair & Maintenance,2021,"Continuation of hire of unit at Penwortham Holme as per Jason request for 2022/2023
April 2022	420.00
May 2022 	434.00
June 2022	420.00
July 2022 	434.00
August 2022	434.00
Sept2022	        420.00
October 2022	434.00
Nov 2022 	420.00
Dec",17/06/2022,0000479326,434.00,Revenue,Wernick Hire Ltd,0
South Ribble Borough Council,http://statistics.data.gov.uk/id/local-authority/30UE,Central Support Services,Franked Post,4292,SRBC - Daily mail collections for all outgoing mail 3pm onwards,01/06/2022,0000478873,335.28,Revenue,WHISTL  UK LTD,0
South Ribble Borough Council,http://statistics.data.gov.uk/id/local-authority/30UE,Central Support Services,Franked Post,4292,SRBC - Daily mail collections for all outgoing mail 3pm onwards,01/06/2022,0000478874,377.19,Revenue,WHISTL  UK LTD,0
South Ribble Borough Council,http://statistics.data.gov.uk/id/local-authority/30UE,Central Support Services,Franked Post,4292,SRBC - Daily mail collections for all outgoing mail 3pm onwards,01/06/2022,0000478948,307.30,Revenue,WHISTL  UK LTD,0
South Ribble Borough Council,http://statistics.data.gov.uk/id/local-authority/30UE,Central Support Services,Franked Post,4292,SRBC - Daily mail collections for all outgoing mail 3pm onwards,10/06/2022,0000479148,355.93,Revenue,WHISTL  UK LTD,0
South Ribble Borough Council,http://statistics.data.gov.uk/id/local-authority/30UE,Capital,Cap Contract Payment,C230,STRUCTURAL AND DRAINAGE SERVICES TO RIBA STAGE 3 FOR THE LEYLAND TOWN DEAL DEVELOPMENT,10/06/2022,0000479232,"16,846.55",Revenue,Woolgar Hunter Limited,0
South Ribble Borough Council,http://statistics.data.gov.uk/id/local-authority/30UE,Central Support Services,Operational Equip & Tools,4010,match against credit 5032128297,01/06/2022,0000478950,260.00,Revenue,WURTH UK LTD,0
